Workbook

Sheet Inputs
A1: Scenarios | B1: 10000 | G1: Average | H1: Standard Dev | I1: Skewness | J1: Kurtosis | K1: 6th Moment | L1: Std Dev Dln | M1: Skew Dln | N1: Kurt Dln | O1: 6th Dln
A2: Months | B2: 731 | F2: Historical Scenario Average | G2: 0.06314801642 | H2: 0.02661353719 | I2: 0.9215090027 | J2: 3.536794511 | K2: 21.68754811 | L2: 0.0361393065 | M2: -0.8361673009 | N2: 10.75581656 | O2: 467.5809492
A3: dt | B3: 0.08333333333 | F3: Model Scenario Average | G3: 0.0638296589 | H3: 0.02658521577 | I3: 0.5346575635 | J3: 2.921433366 | K3: 15.51660585 | L3: 0.03573141704 | M3: -0.003638090929 | N3: 5.987515299 | O3: 96.35969346
A4: Initial Rate | B4: 0.0363 | F4: Model Scenario Standard Dev | G4: 0.01313736536 | H4: 0.01090873327 | I4: 0.5963551598 | J4: 1.237870272 | K4: 19.30740934 | L4: 0.001710358609 | M4: 0.3059016746 | N4: 1.414317655 | O4: 99.06552577
A5: Initial Target | B5: 0.02411660367 | F5: Model Scenario Skewness | G5: 0.7475494794 | H5: 3.019353603 | I5: 0.383712742 | J5: 2.463362132 | K5: 6.461690848 | L5: 9.295155384e+12 | M5: 1624697.934 | N5: 16441.76639 | O5: 8.51396204
A6: meanTarget | B6: 0.068037156 | F6: Model Scenario Kurtosis | G6: 4.220929335 | H6: 18.32602909 | I6: 3.383882615 | J6: 12.91764693 | K6: 94.03591774 | L6: 1.527007154e+18 | M6: 1492321402 | N6: 3265911.794 | O6: 150.0680346
A7: targetVol | B7: 0.459514051 | F7: Model Scenario 6th Moment | G7: 49.8161419 | H7: 510.5704328 | I7: 21.40065163 | J7: 527.4593784 | K7: 49699.24526 | L7: 1.028420559e+29 | M7: 3141974757715761 | N7: 3.216711e+11 | O7: 100546.1535
A8: adjVol | B8: 0.04547002429
A9: Reversion | B9: 0.386806339 | F9: R | G9: Mean | H9: StDev | I9: Max | J9: Min | K9: Median | L9: 90th Percentile | M9: 10th Percentile
A10: Alpha | B10: 3.519950456 | F10: Distance 1 | G10: 0.2332701778 | H10: 0.1005751034 | I10: 0.7086183311 | J10: 0.03967168263 | K10: 0.218878249 | L10: 0.3720930233 | M10: 0.1162790698
A11: Beta | B11: 2.317331572 | F11: Distance 2 | G11: 0.04252784204 | H11: 0.02136470233 | I11: 0.1570472588 | J11: 0.007110253896 | K11: 0.03779619075 | L11: 0.07202674124 | M11: 0.01994603572
A12: Barrier | B12: 0.04 | F12: Distance 3 | G12: 0.01252721683 | H12: 0.007355998888 | I12: 0.09242134063 | J12: 0.001949384405 | K12: 0.0107250342 | L12: 0.02163611491 | M12: 0.005608071135
A13: Cash Reserves | B13: 0 | F13: Distance 4 | G13: 20.42248974 | H13: 7.883532015 | I13: 95.75923393 | J13: 5.745554036 | K13: 19.15184679 | L13: 30.36935705 | M13: 12.03830369
A14: Random Numbers | B14: 10 | F14: Distance 5 | G14: 2.60380201 | H14: 0.6781991617 | I14: 7.381920433 | J14: 0.9350482895 | K14: 2.527709158 | L14: 3.483642618 | M14: 1.816656498
A15: Worst Percentage | B15: 0.01 | F15: Distance 6 | G15: 0.6816760602 | H15: 0.162997444 | I15: 1.417236662 | J15: 0.268125855 | K15: 0.6675786594 | L15: 0.8974008208 | M15: 0.487004104
A16: Monthly Quantile | B16: 0.995
A17: Comparable Lognormal | F17: Ln_R
A18: μ= | B18: -2.75873125 | F18: Distance 1 | G18: 0.2348559508 | H18: 0.1004606941 | I18: 0.7086183311 | J18: 0.03693570451 | K18: 0.218878249 | L18: 0.3734610123 | M18: 0.1190150479
A19: σ= | B19: 0.4325378482 | F19: Distance 2 | G19: 0.170078878 | H19: 0.0823224411 | I19: 0.6349750389 | J19: 0.02808795026 | K19: 0.1526320416 | L19: 0.2850650819 | M19: 0.08094990516
F20: Distance 3 | G20: 0.1917997674 | H20: 0.09806250749 | I20: 0.7948358413 | J20: 0.02893296854 | K20: 0.1696990424 | L20: 0.3283276334 | M20: 0.08905608755
A21: DiGamma Distribution | F21: Distance 4 | G21: 1.127927041 | H21: 0.3489480732 | I21: 3.319653443 | J21: 0.3830369357 | K21: 1.076151391 | L21: 1.605107159 | M21: 0.7660738714
A22: alpha | B22: 1.689726673 | F22: Distance 5 | G22: 0.6352785058 | H22: 0.1442372737 | I22: 1.404012694 | J22: 0.2666701599 | K22: 0.6234188944 | L22: 0.827520691 | M22: 0.4617728059
A23: beta | B23: 0.01178301737 | F23: Distance 6 | G23: 0.7015731874 | H23: 0.1599268364 | I23: 1.417236662 | J23: 0.2982216142 | K23: 0.6867305062 | L23: 0.9138166895 | M23: 0.511627907
A24: τ | B24: 0.7809135881
A25: DiGamma DistSize | B25: 50000 | F25: DLn_R
A26: DiGamma DistStep | B26: 1000 | F26: Distance 1 | G26: 0.03554309166 | H26: 0.009309616043 | I26: 0.08618331053 | J26: 0.0123119015 | K26: 0.0341997264 | L26: 0.04787961696 | M26: 0.02462380301
A27: Frequency Plot Sample | B27: 60000 | F27: Distance 2 | G27: 0.006135388763 | H27: 0.001357459043 | I27: 0.01288708135 | J27: 0.002846600827 | K27: 0.005982899772 | L27: 0.007926785122 | M27: 0.004545245274
F28: Distance 3 | G28: 0.002483921341 | H28: 0.0005135370742 | I28: 0.005396716826 | J28: 0.001162790698 | K28: 0.002421340629 | L28: 0.003146374829 | M28: 0.001894664843
F29: Distance 4 | G29: 5.226812585 | H29: 1.203523124 | I29: 11.21751026 | J29: 2.18878249 | K29: 5.198358413 | L29: 6.83994528 | M29: 3.830369357
F30: Distance 5 | G30: 0.7724337547 | H30: 0.1021690962 | I30: 1.186607302 | J30: 0.4185241735 | K30: 0.7689996893 | L30: 0.9065959795 | M30: 0.6422267904
F31: Distance 6 | G31: 0.2618155951 | H31: 0.02942191576 | I31: 0.3830369357 | J31: 0.1641586867 | K31: 0.2626538988 | L31: 0.3009575923 | M31: 0.2243502052
F34: Distance 1
F36: Distance 2
F38: Distance 3
F40: Distance 4
F42: Distance 5
F44: Distance 6

Sheet Percentile Plot (3)

Sheet Percentile Plot (2)
A42: 0.0372 | B42: 0.03993556626 | C42: 0.04090910322 | D42: 0.04194356738 | E42: 0.04295536998 | F42: 0.0434038109 | G42: 0.04406412658 | H42: 0.0446995134 | I42: 0.04528812846 | J42: 0.04593521265 | K42: 0.04632865909 | L42: 0.04670246889 | M42: 0.04714892001 | N42: 0.04808569283 | O42: 0.048759429 | P42: 0.04853444024 | Q42: 0.04928175838 | R42: 0.0493767245 | S42: 0.04971412195 | T42: 0.05018665583 | U42: 0.05207337877 | V42: 0.05231639376 | W42: 0.05249690574 | X42: 0.05283449791 | Y42: 0.05345266232 | Z42: 0.05366584236 | AA42: 0.05441168064 | AB42: 0.05462704416 | AC42: 0.05515026059 | AD42: 0.05537298236 | AE42: 0.05551368501 | AF42: 0.05500046682 | AG42: 0.05497514192 | AH42: 0.05605651976 | AI42: 0.05691240486 | AJ42: 0.05755959945 | AK42: 0.05798372783 | AL42: 0.0574014956 | AM42: 0.05854400208 | AN42: 0.05844217262 | AO42: 0.05877141274 | AP42: 0.05898792998 | AQ42: 0.05857928755 | AR42: 0.05968237629 | AS42: 0.05987332186 | AT42: 0.06030233236 | AU42: 0.06183922121 | AV42: 0.06082550281 | AW42: 0.06130669153 | AX42: 0.06219032745 | AY42: 0.06204517725 | AZ42: 0.06295140292 | BA42: 0.06362498121 | BB42: 0.06411873353 | BC42: 0.06376516874 | BD42: 0.06479672262 | BE42: 0.06532279618 | BF42: 0.06507290914 | BG42: 0.06569102374 | BH42: 0.06609894707 | BI42: 0.06623812873 | BJ42: 0.0669877949 | BK42: 0.06723936747 | BL42: 0.06750698708 | BM42: 0.06769242863 | BN42: 0.06798763655 | BO42: 0.06886037222 | BP42: 0.07026262942 | BQ42: 0.0696759528 | BR42: 0.06985158202 | BS42: 0.07084291622 | BT42: 0.07105719435 | BU42: 0.07185146765 | BV42: 0.0719490175 | BW42: 0.0718199968 | BX42: 0.07263772104 | BY42: 0.07243147548 | BZ42: 0.07324407358 | CA42: 0.07400905702 | CB42: 0.07454173828 | CC42: 0.07501926156 | CD42: 0.07477142233 | CE42: 0.07640163678 | CF42: 0.0761484038 | CG42: 0.07392898525 | CH42: 0.07589412855 | CI42: 0.07510806782 | CJ42: 0.07599013833 | CK42: 0.07601838879 | CL42: 0.0766084873 | CM42: 0.07555432254 | CN42: 0.07719956529 | CO42: 0.0775437012 | CP42: 0.07708017373 | CQ42: 0.0766775075 | CR42: 0.07719872314 | CS42: 0.07754525241 | CT42: 0.07799953593 | CU42: 0.078985388 | CV42: 0.07961808844 | CW42: 0.07808779027 | CX42: 0.07865012098 | CY42: 0.07953278847 | CZ42: 0.08022754338 | DA42: 0.08026566551 | DB42: 0.08084134714 | DC42: 0.08298336233 | DD42: 0.08272039195 | DE42: 0.08320852499 | DF42: 0.08419996528 | DG42: 0.08404643935 | DH42: 0.08455940075 | DI42: 0.08565668439 | DJ42: 0.08532073248 | DK42: 0.08571632387 | DL42: 0.08697781587 | DM42: 0.0867153287 | DN42: 0.08653681835 | DO42: 0.08647116736 | DP42: 0.0875352607 | DQ42: 0.0885698366 | DR42: 0.08954655072 | DS42: 0.09057605866 | DT42: 0.0904921536 | DU42: 0.09001919558 | DV42: 0.08991138119 | DW42: 0.08906042558 | DX42: 0.08972210304 | DY42: 0.08980648481 | DZ42: 0.08990455893 | EA42: 0.08905253149 | EB42: 0.09047647562 | EC42: 0.090768649 | ED42: 0.09070158861 | EE42: 0.08961210282 | EF42: 0.09057250897 | EG42: 0.09112780916 | EH42: 0.09277754436 | EI42: 0.09311022956 | EJ42: 0.09273632959 | EK42: 0.09498633742 | EL42: 0.09364674168 | EM42: 0.09405170005 | EN42: 0.09458896877 | EO42: 0.09499259938 | EP42: 0.09465702328 | EQ42: 0.09551912726 | ER42: 0.09578217605 | ES42: 0.09494278239 | ET42: 0.09556910774 | EU42: 0.09783135441 | EV42: 0.09648681815 | EW42: 0.09555729982 | EX42: 0.09522488911 | EY42: 0.09519070941 | EZ42: 0.09606444187 | FA42: 0.09480696905 | FB42: 0.0970500324 | FC42: 0.09759452315 | FD42: 0.0953043805 | FE42: 0.09542311011 | FF42: 0.09482782189 | FG42: 0.09632419381 | FH42: 0.09708973497 | FI42: 0.09624162743 | FJ42: 0.09727671961 | FK42: 0.09705388014 | FL42: 0.0987102092 | FM42: 0.09867845066 | FN42: 0.1004036879 | FO42: 0.09934343833 | FP42: 0.09905736676 | FQ42: 0.09988571448 | FR42: 0.1014870588 | FS42: 0.1006580675 | FT42: 0.1010700246 | FU42: 0.1018981236 | FV42: 0.1019316016 | FW42: 0.1017864775 | FX42: 0.1010609791 | FY42: 0.1020103969 | FZ42: 0.1013515504 | GA42: 0.1015425999 | GB42: 0.1023322532 | GC42: 0.1039411581 | GD42: 0.1038714554 | GE42: 0.1028156324 | GF42: 0.1035288099 | GG42: 0.1031350081 | GH42: 0.103308118 | GI42: 0.1061196238 | GJ42: 0.1046207268 | GK42: 0.1046367678 | GL42: 0.1053477614 | GM42: 0.1041048389 | GN42: 0.1051000044 | GO42: 0.1052257571 | GP42: 0.106871865 | GQ42: 0.1064615876 | GR42: 0.1068457532 | GS42: 0.1042278126 | GT42: 0.1047840143 | GU42: 0.1048487601 | GV42: 0.1049999793 | GW42: 0.1043016323 | GX42: 0.1051855185 | GY42: 0.1059498046 | GZ42: 0.1064497109 | HA42: 0.1060626614 | HB42: 0.1060322462 | HC42: 0.1074266686 | HD42: 0.1066070884 | HE42: 0.1066458338 | HF42: 0.1078835646 | HG42: 0.1076048558 | HH42: 0.1084868738 | HI42: 0.1088398843 | HJ42: 0.108850863 | HK42: 0.1092136286 | HL42: 0.1097808474 | HM42: 0.1098677849 | HN42: 0.1111003246 | HO42: 0.1107478914 | HP42: 0.1102915523 | HQ42: 0.1121497178 | HR42: 0.110797903 | HS42: 0.1091104034 | HT42: 0.1117339548 | HU42: 0.1119631033 | HV42: 0.1118977001 | HW42: 0.1115593438 | HX42: 0.111520646 | HY42: 0.1128527914 | HZ42: 0.1133988072 | IA42: 0.1159642784 | IB42: 0.1156009554 | IC42: 0.1141806843 | ID42: 0.1140146349 | IE42: 0.1141503338 | IF42: 0.1155388378 | IG42: 0.1159667506 | IH42: 0.1167713418 | II42: 0.1152319908 | IJ42: 0.1158188073 | IK42: 0.1159867487 | IL42: 0.1145651555 | IM42: 0.1164852564 | IN42: 0.1168466826 | IO42: 0.1160255795 | IP42: 0.1151853274 | IQ42: 0.1153609077 | IR42: 0.1172201532 | IS42: 0.116811905 | IT42: 0.1159611272 | IU42: 0.1157154134 | IV42: 0.1165933778 | IW42: 0.1161425122 | IX42: 0.1167612901 | IY42: 0.1161973465 | IZ42: 0.1174658969 | JA42: 0.1165982269 | JB42: 0.1175426886 | JC42: 0.1187866009 | JD42: 0.1201312439 | JE42: 0.1190676111 | JF42: 0.1179081629 | JG42: 0.1165741488 | JH42: 0.1159150484 | JI42: 0.1173429072 | JJ42: 0.117056882 | JK42: 0.1148344491 | JL42: 0.1153091694 | JM42: 0.1171960748 | JN42: 0.1164670087 | JO42: 0.1151740438 | JP42: 0.1166542009 | JQ42: 0.1157789281 | JR42: 0.1168827954 | JS42: 0.1185426887 | JT42: 0.1181365701 | JU42: 0.1168201121 | JV42: 0.1176435374 | JW42: 0.1173377318 | JX42: 0.1174363102 | JY42: 0.1184394355 | JZ42: 0.119169326 | KA42: 0.1182108273 | KB42: 0.1176302209 | KC42: 0.1169122947 | KD42: 0.1166440633 | KE42: 0.1167851136 | KF42: 0.1146349432 | KG42: 0.1146244068 | KH42: 0.1156337314 | KI42: 0.1163021947 | KJ42: 0.1166018529 | KK42: 0.1153886274 | KL42: 0.1159080683 | KM42: 0.1158055926 | KN42: 0.1158150632 | KO42: 0.116295682 | KP42: 0.1150729366 | KQ42: 0.1158544841 | KR42: 0.1167642769 | KS42: 0.1177335582 | KT42: 0.1179357827 | KU42: 0.11740853 | KV42: 0.1163581003 | KW42: 0.1160781043 | KX42: 0.1174347545 | KY42: 0.118322878 | KZ42: 0.1190814389 | LA42: 0.1192073505 | LB42: 0.1173891568 | LC42: 0.1182328042 | LD42: 0.1172050454 | LE42: 0.1166614246 | LF42: 0.1174075506 | LG42: 0.1169498512 | LH42: 0.1163385165 | LI42: 0.1170768613 | LJ42: 0.1175438146 | LK42: 0.1161199218 | LL42: 0.117262322 | LM42: 0.1173520454 | LN42: 0.1175862757 | LO42: 0.1182526651 | LP42: 0.1184668283 | LQ42: 0.1193494193 | LR42: 0.1199805377 | LS42: 0.1181276167 | LT42: 0.1189196883 | LU42: 0.1169286412 | LV42: 0.1212122244 | LW42: 0.1193172082 | LX42: 0.1192568306 | LY42: 0.1195004771 | LZ42: 0.119959388 | MA42: 0.1186602139 | MB42: 0.1193813226 | MC42: 0.1187704795 | MD42: 0.1186512801 | ME42: 0.1196536456 | MF42: 0.1196233194 | MG42: 0.1185409233 | MH42: 0.1192658079 | MI42: 0.1193033632 | MJ42: 0.1200732486 | MK42: 0.1212149885 | ML42: 0.1220709151 | MM42: 0.1205549343 | MN42: 0.1212603949 | MO42: 0.1226058619 | MP42: 0.121990389 | MQ42: 0.1205543537 | MR42: 0.1214181267 | MS42: 0.1214516901 | MT42: 0.1210003638 | MU42: 0.1201919317 | MV42: 0.1199127364 | MW42: 0.1210189907 | MX42: 0.1209059654 | MY42: 0.1187807657 | MZ42: 0.1201941144 | NA42: 0.1210920032 | NB42: 0.1221288715 | NC42: 0.1219981347 | ND42: 0.1227793227 | NE42: 0.1216234541 | NF42: 0.1216634953 | NG42: 0.1223977904 | NH42: 0.1218804498 | NI42: 0.1237124438 | NJ42: 0.1243838601 | NK42: 0.1239397588 | NL42: 0.1229641017 | NM42: 0.1251024639 | NN42: 0.1240618704 | NO42: 0.1231190524 | NP42: 0.1224698086 | NQ42: 0.1220230909 | NR42: 0.1197453712 | NS42: 0.1209648376 | NT42: 0.1202041946 | NU42: 0.1193631332 | NV42: 0.120874683 | NW42: 0.1220601854 | NX42: 0.1221373844 | NY42: 0.1217508242 | NZ42: 0.121953436 | OA42: 0.1220865404 | OB42: 0.1233044712 | OC42: 0.1239321441 | OD42: 0.1245860323 | OE42: 0.1246601802 | OF42: 0.1238452031 | OG42: 0.1249446568 | OH42: 0.1238435803 | OI42: 0.1233504177 | OJ42: 0.1244102052 | OK42: 0.1241892523 | OL42: 0.1239039251 | OM42: 0.1250569986 | ON42: 0.1261021681 | OO42: 0.1245482206 | OP42: 0.1263941215 | OQ42: 0.1246617928 | OR42: 0.1249287399 | OS42: 0.1241430782 | OT42: 0.1260614011 | OU42: 0.1265713811 | OV42: 0.1281723243 | OW42: 0.1268011927 | OX42: 0.1267809739 | OY42: 0.128324833 | OZ42: 0.1277200063 | PA42: 0.1270961868 | PB42: 0.1265672 | PC42: 0.1282862974 | PD42: 0.1270250547 | PE42: 0.1268287072 | PF42: 0.13097432 | PG42: 0.1311178293 | PH42: 0.1325055151 | PI42: 0.1332216624 | PJ42: 0.1330139098 | PK42: 0.1311575013 | PL42: 0.1306311554 | PM42: 0.1301653513 | PN42: 0.1322868239 | PO42: 0.1296968205 | PP42: 0.1324357685 | PQ42: 0.1336655012 | PR42: 0.1333827065 | PS42: 0.1352544567 | PT42: 0.134476713 | PU42: 0.1331620495 | PV42: 0.1334932226 | PW42: 0.1329298507 | PX42: 0.1340622325 | PY42: 0.1341412201 | PZ42: 0.1350247332 | QA42: 0.1343097208 | QB42: 0.1342529478 | QC42: 0.1334775492 | QD42: 0.132700923 | QE42: 0.1312636351 | QF42: 0.1313049113 | QG42: 0.1317858058 | QH42: 0.1314086635 | QI42: 0.1344749112 | QJ42: 0.1339488169 | QK42: 0.1323517308 | QL42: 0.1350474918 | QM42: 0.1342253459 | QN42: 0.1341414868 | QO42: 0.1347149466 | QP42: 0.1323052408 | QQ42: 0.1337241033 | QR42: 0.1333062893 | QS42: 0.132837105 | QT42: 0.1334660731 | QU42: 0.132004719 | QV42: 0.1324287616 | QW42: 0.1318675618 | QX42: 0.1319707445 | QY42: 0.1346371037 | QZ42: 0.131510651 | RA42: 0.131605739 | RB42: 0.1323136535 | RC42: 0.1326652174 | RD42: 0.1314013496 | RE42: 0.1294465914 | RF42: 0.1306962537 | RG42: 0.1299276529 | RH42: 0.1310698392 | RI42: 0.1298533708 | RJ42: 0.1318088287 | RK42: 0.1299993783 | RL42: 0.1318195822 | RM42: 0.1319844828 | RN42: 0.133866589 | RO42: 0.1330059004 | RP42: 0.1328522244 | RQ42: 0.1327173616 | RR42: 0.1348609931 | RS42: 0.1350543217 | RT42: 0.1352651557 | RU42: 0.137291946 | RV42: 0.1394876734 | RW42: 0.1383172531 | RX42: 0.1366325779 | RY42: 0.1399137227 | RZ42: 0.1368712872 | SA42: 0.1365846975 | SB42: 0.1357595082 | SC42: 0.135159234 | SD42: 0.1330988416 | SE42: 0.1341750767 | SF42: 0.1338996095 | SG42: 0.1346700115 | SH42: 0.1345559476 | SI42: 0.1349255931 | SJ42: 0.1358875544 | SK42: 0.1362423285 | SL42: 0.1355905231 | SM42: 0.1358880956 | SN42: 0.1353563071 | SO42: 0.13667654 | SP42: 0.1365437126 | SQ42: 0.1366356051 | SR42: 0.1367811029 | SS42: 0.1347225264 | ST42: 0.1328668812 | SU42: 0.1343875368 | SV42: 0.1337679133 | SW42: 0.1315304087 | SX42: 0.1333105922 | SY42: 0.1333161874 | SZ42: 0.1314347058 | TA42: 0.1310153678 | TB42: 0.1319314319 | TC42: 0.1318851004 | TD42: 0.1316855041 | TE42: 0.1307047715 | TF42: 0.1334384848 | TG42: 0.1306080399 | TH42: 0.1303822432 | TI42: 0.1325199741 | TJ42: 0.134133672 | TK42: 0.135246493 | TL42: 0.1341138408 | TM42: 0.1328492451 | TN42: 0.13485468 | TO42: 0.1342817244 | TP42: 0.1337842418 | TQ42: 0.1349301272 | TR42: 0.1346396997 | TS42: 0.1343604491 | TT42: 0.1329583528 | TU42: 0.1324763455 | TV42: 0.1331022819 | TW42: 0.1334737018 | TX42: 0.1343383322 | TY42: 0.1346087734 | TZ42: 0.134240297 | UA42: 0.136003683 | UB42: 0.1367256417 | UC42: 0.1370270875 | UD42: 0.1390528533 | UE42: 0.1387132811 | UF42: 0.140733982 | UG42: 0.1409414806 | UH42: 0.137485751 | UI42: 0.1365206875 | UJ42: 0.1360954601 | UK42: 0.1386760808 | UL42: 0.1371589694 | UM42: 0.1368213225 | UN42: 0.1380678909 | UO42: 0.1386689109 | UP42: 0.1388846477 | UQ42: 0.1370885864 | UR42: 0.1386256505 | US42: 0.1377526606 | UT42: 0.1367640982 | UU42: 0.136978002 | UV42: 0.1369160271 | UW42: 0.1385167446 | UX42: 0.1391097195 | UY42: 0.1360796515 | UZ42: 0.1382063235 | VA42: 0.136361536 | VB42: 0.1376949246 | VC42: 0.138333315 | VD42: 0.1386819409 | VE42: 0.139430073 | VF42: 0.1368633652 | VG42: 0.1378080198 | VH42: 0.1388935344 | VI42: 0.1398061147 | VJ42: 0.1408725098 | VK42: 0.1392959602 | VL42: 0.1396559278 | VM42: 0.1387015693 | VN42: 0.1403731656 | VO42: 0.1372787745 | VP42: 0.1408621604 | VQ42: 0.1410684091 | VR42: 0.1422554905 | VS42: 0.1419675258 | VT42: 0.1410034561 | VU42: 0.141098883 | VV42: 0.1416953923 | VW42: 0.1419655376 | VX42: 0.1418812518 | VY42: 0.1440025357 | VZ42: 0.1405432716 | WA42: 0.140138743 | WB42: 0.1415247657 | WC42: 0.1409576394 | WD42: 0.1414682005 | WE42: 0.1411850366 | WF42: 0.1417348664 | WG42: 0.1422487391 | WH42: 0.1427698869 | WI42: 0.1455949994 | WJ42: 0.1453281339 | WK42: 0.143074159 | WL42: 0.1417185087 | WM42: 0.1424077459 | WN42: 0.1426915674 | WO42: 0.142924033 | WP42: 0.1435163999 | WQ42: 0.1422972288 | WR42: 0.1403920013 | WS42: 0.137748319 | WT42: 0.1392848476 | WU42: 0.1374018458 | WV42: 0.1384961244 | WW42: 0.1374485536 | WX42: 0.1392264828 | WY42: 0.1401156111 | WZ42: 0.1399668517 | XA42: 0.1369014184 | XB42: 0.1394791573 | XC42: 0.1379409732 | XD42: 0.1381957551 | XE42: 0.1383449647 | XF42: 0.1385824546 | XG42: 0.1372992775 | XH42: 0.1376054044 | XI42: 0.1396895433 | XJ42: 0.1396411995 | XK42: 0.1413835093 | XL42: 0.1391242027 | XM42: 0.1392668837 | XN42: 0.1411314504 | XO42: 0.1403446278 | XP42: 0.1379589502 | XQ42: 0.1358614495 | XR42: 0.1360800224 | XS42: 0.1376196805 | XT42: 0.1364014808 | XU42: 0.1367545999 | XV42: 0.1380189445 | XW42: 0.1371178533 | XX42: 0.1344996578 | XY42: 0.1357778526 | XZ42: 0.134227529 | YA42: 0.1352098584 | YB42: 0.134999564 | YC42: 0.1358578799 | YD42: 0.1360988152 | YE42: 0.13754705 | YF42: 0.1364724535 | YG42: 0.1374929256 | YH42: 0.1361710404 | YI42: 0.1371840759 | YJ42: 0.1367110921 | YK42: 0.1388322601 | YL42: 0.1379231022 | YM42: 0.1382661522 | YN42: 0.1374034925 | YO42: 0.1368752249 | YP42: 0.1379414951 | YQ42: 0.1361296756 | YR42: 0.1378084951 | YS42: 0.137954945 | YT42: 0.1360961223 | YU42: 0.1350271766 | YV42: 0.1357756418 | YW42: 0.1352199052 | YX42: 0.1359898042 | YY42: 0.1374321761 | YZ42: 0.1398810522 | ZA42: 0.1388091291 | ZB42: 0.139015101 | ZC42: 0.1413723519 | ZD42: 0.1410131106 | ZE42: 0.1419962172 | ZF42: 0.1419739391 | ZG42: 0.1440945954 | ZH42: 0.1420874601 | ZI42: 0.1427305254 | ZJ42: 0.1449480186 | ZK42: 0.1440528855 | ZL42: 0.1452825472 | ZM42: 0.1449869716 | ZN42: 0.1460619267 | ZO42: 0.1434999845 | ZP42: 0.1428826849 | ZQ42: 0.1449501362 | ZR42: 0.1444450361 | ZS42: 0.1428974496 | ZT42: 0.1394153501 | ZU42: 0.1398055091 | ZV42: 0.1389616895 | ZW42: 0.1378228088 | ZX42: 0.1386551194 | ZY42: 0.1395895518 | ZZ42: 0.1398757599 | AAA42: 0.1421791063 | AAB42: 0.1425415742 | AAC42: 0.1429118292 | AAD42: 0.1429040941 | AAE42: 0.1436210925 | AAF42: 0.1450062421 | AAG42: 0.1430027289 | AAH42: 0.1414435904 | AAI42: 0.1448259528 | AAJ42: 0.1423973811 | AAK42: 0.1437835344 | AAL42: 0.1443028598 | AAM42: 0.144102319 | AAN42: 0.1435161395 | AAO42: 0.1441975672 | AAP42: 0.1441702454 | AAQ42: 0.1447973981 | AAR42: 0.1443377759 | AAS42: 0.1410643321 | AAT42: 0.1409635545 | AAU42: 0.1420351704 | AAV42: 0.1421275412 | AAW42: 0.1399821399 | AAX42: 0.1394251629 | AAY42: 0.13970019 | AAZ42: 0.1411216369 | ABA42: 0.1394120856 | ABB42: 0.1423150118 | ABC42: 0.1431015469
A44: 0.0372 | B44: 0.03880333685 | C44: 0.03934261227 | D44: 0.0396980975 | E44: 0.04007514632 | F44: 0.04038380936 | G44: 0.04066370563 | H44: 0.04091617033 | I44: 0.04116760616 | J44: 0.04137932621 | K44: 0.04153306635 | L44: 0.04172765045 | M44: 0.04196648355 | N44: 0.04207128643 | O44: 0.04228821858 | P44: 0.04252819286 | Q44: 0.04267148666 | R44: 0.04283181009 | S44: 0.0429546999 | T44: 0.04310668207 | U44: 0.04311994175 | V44: 0.04333064849 | W44: 0.04344719608 | X44: 0.04371689609 | Y44: 0.04392544264 | Z44: 0.04414872314 | AA44: 0.04413321568 | AB44: 0.04424527645 | AC44: 0.04443382228 | AD44: 0.04470161041 | AE44: 0.04481919767 | AF44: 0.04491583985 | AG44: 0.04512515329 | AH44: 0.04531440197 | AI44: 0.04554175727 | AJ44: 0.04568285414 | AK44: 0.04582667518 | AL44: 0.04599550219 | AM44: 0.04628992181 | AN44: 0.04629182303 | AO44: 0.04650149668 | AP44: 0.04678637573 | AQ44: 0.04709065773 | AR44: 0.04712285271 | AS44: 0.04711335267 | AT44: 0.04725033265 | AU44: 0.04749905138 | AV44: 0.0475256609 | AW44: 0.04803103643 | AX44: 0.04797948603 | AY44: 0.04814195797 | AZ44: 0.04845140327 | BA44: 0.04859944592 | BB44: 0.04898725503 | BC44: 0.04928319202 | BD44: 0.04936520384 | BE44: 0.04950293103 | BF44: 0.04960265995 | BG44: 0.04970424326 | BH44: 0.04969568307 | BI44: 0.04993517664 | BJ44: 0.05041467322 | BK44: 0.05058529863 | BL44: 0.05084289417 | BM44: 0.05058470711 | BN44: 0.05095766374 | BO44: 0.05111251836 | BP44: 0.05116501476 | BQ44: 0.0517753006 | BR44: 0.05185873377 | BS44: 0.05216301048 | BT44: 0.05220022895 | BU44: 0.05222247147 | BV44: 0.0525085257 | BW44: 0.05260718799 | BX44: 0.05288600486 | BY44: 0.05304000994 | BZ44: 0.05313906423 | CA44: 0.05337702522 | CB44: 0.05348506427 | CC44: 0.05379347858 | CD44: 0.0539773656 | CE44: 0.05433894576 | CF44: 0.0546319238 | CG44: 0.05461299247 | CH44: 0.05477211359 | CI44: 0.05507556734 | CJ44: 0.05513897973 | CK44: 0.05523169138 | CL44: 0.05554104679 | CM44: 0.0559718461 | CN44: 0.05572777417 | CO44: 0.05582836073 | CP44: 0.05623309329 | CQ44: 0.0564368593 | CR44: 0.05645698924 | CS44: 0.05662686076 | CT44: 0.05686344297 | CU44: 0.05663471087 | CV44: 0.05705762264 | CW44: 0.05721470108 | CX44: 0.0572891031 | CY44: 0.05751132363 | CZ44: 0.05779318889 | DA44: 0.05806468865 | DB44: 0.05781814503 | DC44: 0.05811487373 | DD44: 0.05805484512 | DE44: 0.0580416129 | DF44: 0.05824221384 | DG44: 0.0588509628 | DH44: 0.05866923794 | DI44: 0.05863080902 | DJ44: 0.05873926017 | DK44: 0.05917897642 | DL44: 0.05939348879 | DM44: 0.05961061754 | DN44: 0.05953977226 | DO44: 0.06000771006 | DP44: 0.06005344937 | DQ44: 0.05988013262 | DR44: 0.0600738942 | DS44: 0.06025148356 | DT44: 0.0605008518 | DU44: 0.06062767954 | DV44: 0.06105792815 | DW44: 0.06060617493 | DX44: 0.06068389795 | DY44: 0.06095660849 | DZ44: 0.06110535557 | EA44: 0.06126251262 | EB44: 0.06167363986 | EC44: 0.06162751458 | ED44: 0.06218174944 | EE44: 0.06183133746 | EF44: 0.06221428622 | EG44: 0.0625942286 | EH44: 0.0625122208 | EI44: 0.06267134547 | EJ44: 0.0628704095 | EK44: 0.06279116718 | EL44: 0.06281336388 | EM44: 0.06309743041 | EN44: 0.06322705985 | EO44: 0.06358914775 | EP44: 0.06380446227 | EQ44: 0.06383484921 | ER44: 0.06426852752 | ES44: 0.06421342861 | ET44: 0.06450963428 | EU44: 0.0647079221 | EV44: 0.06460466729 | EW44: 0.06457678301 | EX44: 0.06479204329 | EY44: 0.06485428205 | EZ44: 0.06496918053 | FA44: 0.0648654466 | FB44: 0.06469832576 | FC44: 0.06497786271 | FD44: 0.06521577224 | FE44: 0.06533085945 | FF44: 0.06512275791 | FG44: 0.06560760932 | FH44: 0.06584827681 | FI44: 0.06610742341 | FJ44: 0.0661920504 | FK44: 0.06608990263 | FL44: 0.06620770809 | FM44: 0.06637588328 | FN44: 0.06669574662 | FO44: 0.06700761217 | FP44: 0.06713623315 | FQ44: 0.06697255795 | FR44: 0.06714435328 | FS44: 0.06728001764 | FT44: 0.06760089618 | FU44: 0.06790719351 | FV44: 0.06793773325 | FW44: 0.0682485228 | FX44: 0.06848583421 | FY44: 0.06870842299 | FZ44: 0.06880634272 | GA44: 0.06883525282 | GB44: 0.06882556978 | GC44: 0.06855563699 | GD44: 0.06853896045 | GE44: 0.06907697213 | GF44: 0.06935272174 | GG44: 0.06944039375 | GH44: 0.06959829869 | GI44: 0.06995593127 | GJ44: 0.0702399061 | GK44: 0.0703003887 | GL44: 0.07062055749 | GM44: 0.07067885742 | GN44: 0.07079754274 | GO44: 0.07089804487 | GP44: 0.07109970861 | GQ44: 0.07106552567 | GR44: 0.07144817272 | GS44: 0.07113883703 | GT44: 0.07135838967 | GU44: 0.07135949373 | GV44: 0.07144348952 | GW44: 0.07185981234 | GX44: 0.07194412725 | GY44: 0.07163054848 | GZ44: 0.07151550569 | HA44: 0.07156363057 | HB44: 0.07175719454 | HC44: 0.07195079328 | HD44: 0.0720851635 | HE44: 0.07230262521 | HF44: 0.07240013971 | HG44: 0.07260348194 | HH44: 0.07265227079 | HI44: 0.07296711391 | HJ44: 0.07294260555 | HK44: 0.07271862938 | HL44: 0.07262644463 | HM44: 0.07309769211 | HN44: 0.07304244546 | HO44: 0.07313025514 | HP44: 0.07324647454 | HQ44: 0.07342558015 | HR44: 0.07384426612 | HS44: 0.07375523875 | HT44: 0.07415366891 | HU44: 0.07375652941 | HV44: 0.07421139218 | HW44: 0.0740261974 | HX44: 0.07399555291 | HY44: 0.07431439188 | HZ44: 0.07445411359 | IA44: 0.07399068312 | IB44: 0.07420665266 | IC44: 0.0744235981 | ID44: 0.07426005178 | IE44: 0.07441378822 | IF44: 0.07488248048 | IG44: 0.07490472465 | IH44: 0.0746873264 | II44: 0.07465772185 | IJ44: 0.07462878956 | IK44: 0.0746076807 | IL44: 0.07490531014 | IM44: 0.07507910605 | IN44: 0.07497406609 | IO44: 0.07505278148 | IP44: 0.07529213534 | IQ44: 0.0758391267 | IR44: 0.07579179979 | IS44: 0.07558244492 | IT44: 0.07552910005 | IU44: 0.07558763139 | IV44: 0.07572531108 | IW44: 0.07586871699 | IX44: 0.07561268972 | IY44: 0.07563861569 | IZ44: 0.07559841466 | JA44: 0.07564834031 | JB44: 0.0756128827 | JC44: 0.07597409743 | JD44: 0.07584271935 | JE44: 0.0761372193 | JF44: 0.07646429767 | JG44: 0.07617839848 | JH44: 0.07609740969 | JI44: 0.0762823833 | JJ44: 0.07645956593 | JK44: 0.07669624421 | JL44: 0.07663217759 | JM44: 0.07724310179 | JN44: 0.0774469138 | JO44: 0.07746476272 | JP44: 0.0775828407 | JQ44: 0.07777140107 | JR44: 0.07747648437 | JS44: 0.07757630084 | JT44: 0.07740177187 | JU44: 0.07777407946 | JV44: 0.0780268545 | JW44: 0.07821328673 | JX44: 0.07812732367 | JY44: 0.07858120901 | JZ44: 0.07869212873 | KA44: 0.07850704536 | KB44: 0.07866852246 | KC44: 0.07878427881 | KD44: 0.07876382997 | KE44: 0.07892348866 | KF44: 0.0787195775 | KG44: 0.07883859604 | KH44: 0.07855125127 | KI44: 0.07857966037 | KJ44: 0.07846941925 | KK44: 0.07906330365 | KL44: 0.07922585336 | KM44: 0.07930243466 | KN44: 0.07934293141 | KO44: 0.07931739385 | KP44: 0.07936356763 | KQ44: 0.07963327123 | KR44: 0.07982652148 | KS44: 0.07958193955 | KT44: 0.07978061025 | KU44: 0.07975459843 | KV44: 0.0798234451 | KW44: 0.07964992679 | KX44: 0.07946628852 | KY44: 0.07940911954 | KZ44: 0.07925937531 | LA44: 0.07919327576 | LB44: 0.0789515766 | LC44: 0.07961418615 | LD44: 0.07942744233 | LE44: 0.0799418406 | LF44: 0.07952481578 | LG44: 0.07971637405 | LH44: 0.07995715187 | LI44: 0.07982583854 | LJ44: 0.07965525148 | LK44: 0.07991996639 | LL44: 0.08006680643 | LM44: 0.0801123243 | LN44: 0.08029126445 | LO44: 0.08068344889 | LP44: 0.08055555275 | LQ44: 0.08075544519 | LR44: 0.08104850603 | LS44: 0.08106263083 | LT44: 0.08087578866 | LU44: 0.0806336286 | LV44: 0.08072176064 | LW44: 0.08109734024 | LX44: 0.08100499462 | LY44: 0.08105459314 | LZ44: 0.0813876807 | MA44: 0.08134147815 | MB44: 0.08131473922 | MC44: 0.08121314061 | MD44: 0.08101662783 | ME44: 0.08121333761 | MF44: 0.08130034589 | MG44: 0.08094258734 | MH44: 0.08090175397 | MI44: 0.08082398116 | MJ44: 0.08130066486 | MK44: 0.08152322399 | ML44: 0.0815267239 | MM44: 0.08164506569 | MN44: 0.08212162039 | MO44: 0.0816133724 | MP44: 0.08158522791 | MQ44: 0.08181003102 | MR44: 0.08137258831 | MS44: 0.08162551956 | MT44: 0.0816972966 | MU44: 0.08176260998 | MV44: 0.08181453744 | MW44: 0.08151841623 | MX44: 0.08141549348 | MY44: 0.08172633132 | MZ44: 0.08153409998 | NA44: 0.08154744154 | NB44: 0.08181560528 | NC44: 0.08126660342 | ND44: 0.08117282259 | NE44: 0.08141192706 | NF44: 0.08142637241 | NG44: 0.08186441653 | NH44: 0.08179795336 | NI44: 0.08175492551 | NJ44: 0.08201334563 | NK44: 0.08247571078 | NL44: 0.08214416107 | NM44: 0.08212075503 | NN44: 0.08210608917 | NO44: 0.08219455046 | NP44: 0.08201275456 | NQ44: 0.08191082526 | NR44: 0.08207873317 | NS44: 0.08242500351 | NT44: 0.08245851669 | NU44: 0.08221984949 | NV44: 0.08215428018 | NW44: 0.08236615315 | NX44: 0.0820096602 | NY44: 0.08225682248 | NZ44: 0.08222312229 | OA44: 0.08237579095 | OB44: 0.08252929592 | OC44: 0.08250566568 | OD44: 0.08232359389 | OE44: 0.08255661091 | OF44: 0.08260704075 | OG44: 0.0825954394 | OH44: 0.08207949434 | OI44: 0.08235867365 | OJ44: 0.08234267167 | OK44: 0.08290492656 | OL44: 0.08331678528 | OM44: 0.08304329393 | ON44: 0.08309586037 | OO44: 0.08255644315 | OP44: 0.08242570927 | OQ44: 0.08231475076 | OR44: 0.08242627784 | OS44: 0.0825616071 | OT44: 0.08277344088 | OU44: 0.08264247484 | OV44: 0.08313859538 | OW44: 0.08328612408 | OX44: 0.08321175613 | OY44: 0.08289358866 | OZ44: 0.0830272057 | PA44: 0.08281906581 | PB44: 0.08317449967 | PC44: 0.08283214627 | PD44: 0.08315308841 | PE44: 0.08330895002 | PF44: 0.08347300036 | PG44: 0.08327695974 | PH44: 0.08315048684 | PI44: 0.08319409152 | PJ44: 0.08319578979 | PK44: 0.08329534404 | PL44: 0.08336090764 | PM44: 0.08328928997 | PN44: 0.08269412367 | PO44: 0.08309461565 | PP44: 0.08308318513 | PQ44: 0.08299278806 | PR44: 0.08274647105 | PS44: 0.08316631667 | PT44: 0.08370165141 | PU44: 0.08379373605 | PV44: 0.08399004226 | PW44: 0.08384868146 | PX44: 0.08372222797 | PY44: 0.08362652977 | PZ44: 0.08386301766 | QA44: 0.08320526195 | QB44: 0.08361368189 | QC44: 0.08345535285 | QD44: 0.08345075001 | QE44: 0.08395396363 | QF44: 0.08373597252 | QG44: 0.08363750926 | QH44: 0.08366572003 | QI44: 0.08400277245 | QJ44: 0.08389985812 | QK44: 0.08396490858 | QL44: 0.08410547963 | QM44: 0.08444517449 | QN44: 0.08451390836 | QO44: 0.08394431777 | QP44: 0.08466971948 | QQ44: 0.08449595296 | QR44: 0.08455874719 | QS44: 0.08424089515 | QT44: 0.08388095958 | QU44: 0.08424779022 | QV44: 0.08426234292 | QW44: 0.08434050717 | QX44: 0.08422312465 | QY44: 0.08431743392 | QZ44: 0.08429024792 | RA44: 0.08478945329 | RB44: 0.08414458987 | RC44: 0.08496856857 | RD44: 0.08490451945 | RE44: 0.08491333798 | RF44: 0.0849456169 | RG44: 0.08506602569 | RH44: 0.08484261295 | RI44: 0.08508537231 | RJ44: 0.08499998273 | RK44: 0.08479899564 | RL44: 0.08449799149 | RM44: 0.08426565919 | RN44: 0.08464402991 | RO44: 0.08495770134 | RP44: 0.08467409895 | RQ44: 0.08481544141 | RR44: 0.08489844571 | RS44: 0.08508880055 | RT44: 0.08506720265 | RU44: 0.08536705984 | RV44: 0.08588651586 | RW44: 0.08564999354 | RX44: 0.08568810472 | RY44: 0.0851678305 | RZ44: 0.08583177454 | SA44: 0.08621548887 | SB44: 0.08573217617 | SC44: 0.08585805919 | SD44: 0.08534386991 | SE44: 0.08583651475 | SF44: 0.08573742354 | SG44: 0.08552607855 | SH44: 0.08520824098 | SI44: 0.08554919938 | SJ44: 0.08541382909 | SK44: 0.08572037221 | SL44: 0.08535739181 | SM44: 0.08541884309 | SN44: 0.08556095877 | SO44: 0.08547906522 | SP44: 0.08520691206 | SQ44: 0.08543997336 | SR44: 0.08586438341 | SS44: 0.08578470754 | ST44: 0.08597085535 | SU44: 0.08582118003 | SV44: 0.0858745176 | SW44: 0.0857497552 | SX44: 0.08567616145 | SY44: 0.08574927989 | SZ44: 0.08563297729 | TA44: 0.08561004454 | TB44: 0.08555504226 | TC44: 0.08596859759 | TD44: 0.08617608646 | TE44: 0.08592196115 | TF44: 0.08608476383 | TG44: 0.08662965205 | TH44: 0.08650751774 | TI44: 0.08673036113 | TJ44: 0.08641458424 | TK44: 0.08682473828 | TL44: 0.08732055677 | TM44: 0.08693048841 | TN44: 0.08676703927 | TO44: 0.08712406861 | TP44: 0.08718620048 | TQ44: 0.0866249969 | TR44: 0.08673446608 | TS44: 0.08705249579 | TT44: 0.08698233157 | TU44: 0.08730443041 | TV44: 0.08732414015 | TW44: 0.08703029674 | TX44: 0.08718932386 | TY44: 0.08715340252 | TZ44: 0.08729817945 | UA44: 0.0867995774 | UB44: 0.08712191394 | UC44: 0.08750364015 | UD44: 0.08709745636 | UE44: 0.08722588145 | UF44: 0.08673755425 | UG44: 0.08730427042 | UH44: 0.08716908605 | UI44: 0.08752515483 | UJ44: 0.08644367845 | UK44: 0.0870877966 | UL44: 0.08699718047 | UM44: 0.08689686743 | UN44: 0.08742731181 | UO44: 0.08715268961 | UP44: 0.08729189141 | UQ44: 0.08757994394 | UR44: 0.08781253188 | US44: 0.08764278707 | UT44: 0.0875933357 | UU44: 0.08727515816 | UV44: 0.08747605123 | UW44: 0.08778294464 | UX44: 0.08774586502 | UY44: 0.08749668002 | UZ44: 0.08740932909 | VA44: 0.08696015004 | VB44: 0.08691329951 | VC44: 0.08677404297 | VD44: 0.08754073052 | VE44: 0.08679981649 | VF44: 0.08685567291 | VG44: 0.08679319798 | VH44: 0.08698605544 | VI44: 0.08693004308 | VJ44: 0.08720206607 | VK44: 0.0872125603 | VL44: 0.08734708428 | VM44: 0.08722183995 | VN44: 0.08729002516 | VO44: 0.08741238442 | VP44: 0.0878299162 | VQ44: 0.08697963505 | VR44: 0.08707382115 | VS44: 0.08725348392 | VT44: 0.08707557422 | VU44: 0.08738828472 | VV44: 0.08740013478 | VW44: 0.08742732524 | VX44: 0.0873760917 | VY44: 0.08757859429 | VZ44: 0.08711910335 | WA44: 0.08683583761 | WB44: 0.08641637898 | WC44: 0.08640668868 | WD44: 0.08649074328 | WE44: 0.08664003938 | WF44: 0.08661613514 | WG44: 0.08670148855 | WH44: 0.08719309759 | WI44: 0.0865069644 | WJ44: 0.08650025284 | WK44: 0.08652346489 | WL44: 0.08680599411 | WM44: 0.08646150806 | WN44: 0.08664779553 | WO44: 0.08634935835 | WP44: 0.08576836801 | WQ44: 0.08567926105 | WR44: 0.08592988774 | WS44: 0.08611798463 | WT44: 0.08632012715 | WU44: 0.08622520262 | WV44: 0.0865018455 | WW44: 0.08643956911 | WX44: 0.08684544743 | WY44: 0.08681513732 | WZ44: 0.08697971508 | XA44: 0.08703683471 | XB44: 0.08665559187 | XC44: 0.08689906844 | XD44: 0.08662159631 | XE44: 0.0868406927 | XF44: 0.08682477636 | XG44: 0.08695094992 | XH44: 0.08691210464 | XI44: 0.08701085859 | XJ44: 0.08648964332 | XK44: 0.08628835742 | XL44: 0.08638285914 | XM44: 0.08626611656 | XN44: 0.08624382579 | XO44: 0.08612950748 | XP44: 0.08664790156 | XQ44: 0.08665943779 | XR44: 0.08625110799 | XS44: 0.08681884328 | XT44: 0.08682094511 | XU44: 0.0867927628 | XV44: 0.08646621992 | XW44: 0.08645338184 | XX44: 0.08633554701 | XY44: 0.08625280327 | XZ44: 0.08623999242 | YA44: 0.08645888221 | YB44: 0.08621484337 | YC44: 0.08617624662 | YD44: 0.08618735147 | YE44: 0.08595632861 | YF44: 0.08564512547 | YG44: 0.08575734332 | YH44: 0.08549503157 | YI44: 0.08561889679 | YJ44: 0.08538735818 | YK44: 0.08569620586 | YL44: 0.08603042895 | YM44: 0.08577213986 | YN44: 0.08588231166 | YO44: 0.08628556761 | YP44: 0.08627849917 | YQ44: 0.08661117107 | YR44: 0.08606791796 | YS44: 0.08642625167 | YT44: 0.086609456 | YU44: 0.0868705612 | YV44: 0.08653920343 | YW44: 0.08618665057 | YX44: 0.08650902516 | YY44: 0.08624889058 | YZ44: 0.0864219795 | ZA44: 0.08640120813 | ZB44: 0.08620394223 | ZC44: 0.08618838566 | ZD44: 0.08597774412 | ZE44: 0.08632171403 | ZF44: 0.08619141297 | ZG44: 0.08618463084 | ZH44: 0.0866128432 | ZI44: 0.08653707786 | ZJ44: 0.08640823954 | ZK44: 0.08654857487 | ZL44: 0.08659814945 | ZM44: 0.08628193248 | ZN44: 0.08671089432 | ZO44: 0.08748443518 | ZP44: 0.08688638538 | ZQ44: 0.08710116109 | ZR44: 0.08699969354 | ZS44: 0.08719872796 | ZT44: 0.08639994724 | ZU44: 0.0868296817 | ZV44: 0.08688809683 | ZW44: 0.0873915513 | ZX44: 0.0873304108 | ZY44: 0.08690460834 | ZZ44: 0.08718126821 | AAA44: 0.08702754365 | AAB44: 0.08747636688 | AAC44: 0.08730872973 | AAD44: 0.08741295378 | AAE44: 0.08702419885 | AAF44: 0.08758896433 | AAG44: 0.08757652682 | AAH44: 0.08761140932 | AAI44: 0.08764576027 | AAJ44: 0.08757858032 | AAK44: 0.08765944366 | AAL44: 0.08730793292 | AAM44: 0.08737110203 | AAN44: 0.0877473808 | AAO44: 0.08774503874 | AAP44: 0.08743564098 | AAQ44: 0.08739532487 | AAR44: 0.08771712414 | AAS44: 0.08796539367 | AAT44: 0.08843457955 | AAU44: 0.08808765678 | AAV44: 0.08807285698 | AAW44: 0.08769817521 | AAX44: 0.08763724675 | AAY44: 0.08776131176 | AAZ44: 0.08754619212 | ABA44: 0.08710140354 | ABB44: 0.0870012826 | ABC44: 0.08646582588
A46: 0.03719628037 | B46: 0.03702152744 | C46: 0.03685286567 | D46: 0.03668222296 | E46: 0.03652480769 | F46: 0.03637482714 | G46: 0.03623877534 | H46: 0.03612142554 | I46: 0.0360162675 | J46: 0.03591430523 | K46: 0.03579175182 | L46: 0.03569046519 | M46: 0.03559049988 | N46: 0.03549885801 | O46: 0.03542253591 | P46: 0.0353395702 | Q46: 0.0352410661 | R46: 0.0351809576 | S46: 0.03509875478 | T46: 0.03503610666 | U46: 0.03499274406 | V46: 0.03494549015 | W46: 0.03489175228 | X46: 0.03483650171 | Y46: 0.03480059097 | Z46: 0.03477176142 | AA46: 0.03472917785 | AB46: 0.03469543353 | AC46: 0.03464802917 | AD46: 0.03463663742 | AE46: 0.03460519545 | AF46: 0.03459941926 | AG46: 0.0346077374 | AH46: 0.03460264883 | AI46: 0.0346015491 | AJ46: 0.03460184016 | AK46: 0.03461933733 | AL46: 0.03460793697 | AM46: 0.03461161463 | AN46: 0.03460647683 | AO46: 0.03461550893 | AP46: 0.03462321782 | AQ46: 0.03463565351 | AR46: 0.03463231702 | AS46: 0.03464268749 | AT46: 0.03465296407 | AU46: 0.03466767861 | AV46: 0.03467067331 | AW46: 0.03471019691 | AX46: 0.03475109989 | AY46: 0.03476629711 | AZ46: 0.03480360184 | BA46: 0.03483021846 | BB46: 0.03487839532 | BC46: 0.03491871803 | BD46: 0.03496005972 | BE46: 0.03501970801 | BF46: 0.03505206637 | BG46: 0.03509058432 | BH46: 0.03513771598 | BI46: 0.0351679844 | BJ46: 0.03523281522 | BK46: 0.03527960059 | BL46: 0.03532888389 | BM46: 0.0353803036 | BN46: 0.03540920412 | BO46: 0.03544992373 | BP46: 0.03552086731 | BQ46: 0.03558642125 | BR46: 0.03564285523 | BS46: 0.0357070238 | BT46: 0.03574388957 | BU46: 0.03578420616 | BV46: 0.03583307419 | BW46: 0.03587685083 | BX46: 0.03593830479 | BY46: 0.03599288472 | BZ46: 0.03604821856 | CA46: 0.0361317592 | CB46: 0.03619165681 | CC46: 0.03625279549 | CD46: 0.03632833918 | CE46: 0.03637259231 | CF46: 0.03645043215 | CG46: 0.0364957284 | CH46: 0.03654183504 | CI46: 0.03660402701 | CJ46: 0.03666751488 | CK46: 0.03671344218 | CL46: 0.03675991191 | CM46: 0.03683627077 | CN46: 0.03691138956 | CO46: 0.03695981925 | CP46: 0.03701845008 | CQ46: 0.03708921725 | CR46: 0.03713815159 | CS46: 0.03720860312 | CT46: 0.03728273828 | CU46: 0.03733651907 | CV46: 0.03740827294 | CW46: 0.03745890105 | CX46: 0.03751602365 | CY46: 0.03756235163 | CZ46: 0.0376447359 | DA46: 0.03770678893 | DB46: 0.03777517063 | DC46: 0.03784921712 | DD46: 0.03790963659 | DE46: 0.03795868201 | DF46: 0.03803264082 | DG46: 0.03811684864 | DH46: 0.03820139194 | DI46: 0.03823827068 | DJ46: 0.03832233734 | DK46: 0.03838089485 | DL46: 0.03843978895 | DM46: 0.03849024738 | DN46: 0.03854452901 | DO46: 0.03860966034 | DP46: 0.03869096175 | DQ46: 0.03874422927 | DR46: 0.03882331072 | DS46: 0.03887735262 | DT46: 0.0389227112 | DU46: 0.03897768208 | DV46: 0.03903108038 | DW46: 0.03909896143 | DX46: 0.03913726168 | DY46: 0.0392116675 | DZ46: 0.03928412344 | EA46: 0.03935116391 | EB46: 0.03940911738 | EC46: 0.03947787026 | ED46: 0.03953961954 | EE46: 0.03959859219 | EF46: 0.03966468817 | EG46: 0.03972221088 | EH46: 0.03979925157 | EI46: 0.03983260687 | EJ46: 0.0398987833 | EK46: 0.03997490464 | EL46: 0.04003709622 | EM46: 0.04008911646 | EN46: 0.04013241408 | EO46: 0.04019630428 | EP46: 0.04027106062 | EQ46: 0.04032386796 | ER46: 0.04039512591 | ES46: 0.0404259048 | ET46: 0.04050501438 | EU46: 0.04056511076 | EV46: 0.04060065884 | EW46: 0.04066232152 | EX46: 0.04072017108 | EY46: 0.04076455372 | EZ46: 0.04079607522 | FA46: 0.04083191552 | FB46: 0.04090206234 | FC46: 0.04095560311 | FD46: 0.04100726265 | FE46: 0.04107775018 | FF46: 0.04113478489 | FG46: 0.04121707052 | FH46: 0.04128969632 | FI46: 0.04136688134 | FJ46: 0.04141037625 | FK46: 0.04147330683 | FL46: 0.04153595383 | FM46: 0.04160534081 | FN46: 0.04166446913 | FO46: 0.04175108344 | FP46: 0.04180192878 | FQ46: 0.0418627188 | FR46: 0.04193488498 | FS46: 0.04200478627 | FT46: 0.04207873396 | FU46: 0.04212703601 | FV46: 0.04218624 | FW46: 0.04224575189 | FX46: 0.04230027262 | FY46: 0.04234849837 | FZ46: 0.04237946006 | GA46: 0.04242404888 | GB46: 0.04248891266 | GC46: 0.04254560651 | GD46: 0.04260307312 | GE46: 0.04266570082 | GF46: 0.04273415346 | GG46: 0.04279701724 | GH46: 0.04283542822 | GI46: 0.04290759126 | GJ46: 0.04298266105 | GK46: 0.04304818946 | GL46: 0.04312208253 | GM46: 0.04316504109 | GN46: 0.04320385612 | GO46: 0.043255229 | GP46: 0.04330323494 | GQ46: 0.04335361318 | GR46: 0.0434304936 | GS46: 0.04348146054 | GT46: 0.04354303495 | GU46: 0.04358788529 | GV46: 0.04362357107 | GW46: 0.04362923685 | GX46: 0.04368298658 | GY46: 0.04371806543 | GZ46: 0.04378147094 | HA46: 0.04383639911 | HB46: 0.04390723998 | HC46: 0.04394954323 | HD46: 0.04396976675 | HE46: 0.0440233976 | HF46: 0.0440896826 | HG46: 0.04414415014 | HH46: 0.04420191998 | HI46: 0.04424841019 | HJ46: 0.04428544531 | HK46: 0.04432795044 | HL46: 0.04433422412 | HM46: 0.04440397314 | HN46: 0.04442158464 | HO46: 0.04446830127 | HP46: 0.04451982516 | HQ46: 0.04459385111 | HR46: 0.04463062202 | HS46: 0.0446657469 | HT46: 0.04472768432 | HU46: 0.04476293421 | HV46: 0.04480486756 | HW46: 0.04485930132 | HX46: 0.04490404556 | HY46: 0.04497435691 | HZ46: 0.0450169641 | IA46: 0.04506073415 | IB46: 0.04512280559 | IC46: 0.04514881543 | ID46: 0.04517970386 | IE46: 0.04521801616 | IF46: 0.04527824572 | IG46: 0.04531160097 | IH46: 0.04533531951 | II46: 0.04535047307 | IJ46: 0.04540654815 | IK46: 0.04543859595 | IL46: 0.04543784226 | IM46: 0.04549548198 | IN46: 0.0455397092 | IO46: 0.04557084078 | IP46: 0.0456011334 | IQ46: 0.04564502515 | IR46: 0.04565246711 | IS46: 0.04569890983 | IT46: 0.0457206796 | IU46: 0.04576270285 | IV46: 0.04579135339 | IW46: 0.04584758551 | IX46: 0.04588216279 | IY46: 0.04591617426 | IZ46: 0.04595187694 | JA46: 0.04597451052 | JB46: 0.04604068792 | JC46: 0.04606409693 | JD46: 0.04609718712 | JE46: 0.04611113593 | JF46: 0.0461617172 | JG46: 0.04617067026 | JH46: 0.04617902194 | JI46: 0.04625748869 | JJ46: 0.04628889658 | JK46: 0.04631076608 | JL46: 0.04631964815 | JM46: 0.04636290778 | JN46: 0.04638890645 | JO46: 0.04639996651 | JP46: 0.04645111618 | JQ46: 0.04644415167 | JR46: 0.04646841947 | JS46: 0.04650560012 | JT46: 0.04652017594 | JU46: 0.04654880857 | JV46: 0.04657998064 | JW46: 0.04661338444 | JX46: 0.04663436922 | JY46: 0.04666518771 | JZ46: 0.04667625226 | KA46: 0.04669629198 | KB46: 0.04672894687 | KC46: 0.04675472706 | KD46: 0.04677949148 | KE46: 0.04679506287 | KF46: 0.04683465929 | KG46: 0.04684275181 | KH46: 0.04686905416 | KI46: 0.04688914676 | KJ46: 0.0468728348 | KK46: 0.04692965927 | KL46: 0.04696062831 | KM46: 0.04701264816 | KN46: 0.04704368416 | KO46: 0.0470888365 | KP46: 0.04709710393 | KQ46: 0.04712750361 | KR46: 0.04715536627 | KS46: 0.04719860523 | KT46: 0.04722660632 | KU46: 0.0472080673 | KV46: 0.04721988452 | KW46: 0.04724510364 | KX46: 0.04729248163 | KY46: 0.04731370617 | KZ46: 0.04733063028 | LA46: 0.04734151422 | LB46: 0.04736682841 | LC46: 0.04739320062 | LD46: 0.04739898958 | LE46: 0.04742518108 | LF46: 0.04743078897 | LG46: 0.04747959876 | LH46: 0.04748493746 | LI46: 0.04749448552 | LJ46: 0.04748988708 | LK46: 0.04753750193 | LL46: 0.04760585459 | LM46: 0.04764467592 | LN46: 0.04766236543 | LO46: 0.04768055331 | LP46: 0.04768712065 | LQ46: 0.04768552226 | LR46: 0.04772512695 | LS46: 0.04774732482 | LT46: 0.04777515489 | LU46: 0.0477941367 | LV46: 0.04782578539 | LW46: 0.04784414138 | LX46: 0.04787157877 | LY46: 0.04789192867 | LZ46: 0.04786622938 | MA46: 0.04789150562 | MB46: 0.047924352 | MC46: 0.04795791038 | MD46: 0.04798073688 | ME46: 0.04800434284 | MF46: 0.04800604937 | MG46: 0.04801519978 | MH46: 0.04805742824 | MI46: 0.04808176824 | MJ46: 0.04807244312 | MK46: 0.04808461044 | ML46: 0.04810580857 | MM46: 0.04811636014 | MN46: 0.04815642698 | MO46: 0.04817317144 | MP46: 0.04816814491 | MQ46: 0.04817543529 | MR46: 0.04816775431 | MS46: 0.0481791103 | MT46: 0.04818332705 | MU46: 0.04817365106 | MV46: 0.048153291 | MW46: 0.04817255839 | MX46: 0.04818827578 | MY46: 0.04819648379 | MZ46: 0.0482193797 | NA46: 0.04822554886 | NB46: 0.04820644273 | NC46: 0.04820911311 | ND46: 0.04821863315 | NE46: 0.04822983337 | NF46: 0.04823802288 | NG46: 0.04827585212 | NH46: 0.04829728588 | NI46: 0.04834458381 | NJ46: 0.04838785176 | NK46: 0.04840499647 | NL46: 0.04837558794 | NM46: 0.04840334242 | NN46: 0.04840431052 | NO46: 0.04837873118 | NP46: 0.04841122844 | NQ46: 0.04841655675 | NR46: 0.04842618415 | NS46: 0.04844475592 | NT46: 0.04845322769 | NU46: 0.04848330145 | NV46: 0.0485061704 | NW46: 0.04853032672 | NX46: 0.04858746581 | NY46: 0.04857886721 | NZ46: 0.04859099032 | OA46: 0.04862180525 | OB46: 0.048644748 | OC46: 0.04866920969 | OD46: 0.04867450458 | OE46: 0.04868440398 | OF46: 0.04868623797 | OG46: 0.04869900408 | OH46: 0.04870959814 | OI46: 0.048715343 | OJ46: 0.04870894876 | OK46: 0.04874293908 | OL46: 0.04878302781 | OM46: 0.04879188076 | ON46: 0.04878291406 | OO46: 0.04877997165 | OP46: 0.04878156924 | OQ46: 0.0487598552 | OR46: 0.04877261353 | OS46: 0.04881053795 | OT46: 0.0488530784 | OU46: 0.04888952013 | OV46: 0.04891983726 | OW46: 0.04893376867 | OX46: 0.04893463055 | OY46: 0.0489247903 | OZ46: 0.04894263285 | PA46: 0.04895025031 | PB46: 0.04895827585 | PC46: 0.04895471348 | PD46: 0.0489769189 | PE46: 0.04899490626 | PF46: 0.04900943498 | PG46: 0.04899377492 | PH46: 0.04899708998 | PI46: 0.04900341334 | PJ46: 0.0490158039 | PK46: 0.04902815384 | PL46: 0.04902139721 | PM46: 0.04903979703 | PN46: 0.04902438679 | PO46: 0.04901008672 | PP46: 0.04905780985 | PQ46: 0.0490990732 | PR46: 0.04913482874 | PS46: 0.04915564625 | PT46: 0.04918342349 | PU46: 0.04917628056 | PV46: 0.04919095727 | PW46: 0.04921965787 | PX46: 0.04920875464 | PY46: 0.04919661852 | PZ46: 0.04920508151 | QA46: 0.04920446466 | QB46: 0.04923266439 | QC46: 0.04922090254 | QD46: 0.0492227969 | QE46: 0.04920209693 | QF46: 0.04921075819 | QG46: 0.04921263098 | QH46: 0.04921058159 | QI46: 0.04924704302 | QJ46: 0.04928180029 | QK46: 0.04929346153 | QL46: 0.04928401512 | QM46: 0.04928834029 | QN46: 0.04931133446 | QO46: 0.04933463248 | QP46: 0.04935164492 | QQ46: 0.04933951908 | QR46: 0.04936730511 | QS46: 0.0493669687 | QT46: 0.04935161107 | QU46: 0.04933719476 | QV46: 0.04933436027 | QW46: 0.04935811395 | QX46: 0.04938813053 | QY46: 0.04941498198 | QZ46: 0.04944468259 | RA46: 0.0494571513 | RB46: 0.04946942487 | RC46: 0.04947963045 | RD46: 0.04946228427 | RE46: 0.04950124358 | RF46: 0.04948414455 | RG46: 0.04949647422 | RH46: 0.04950851133 | RI46: 0.04954644935 | RJ46: 0.04957849319 | RK46: 0.04959081121 | RL46: 0.04956411643 | RM46: 0.04958861101 | RN46: 0.04958262731 | RO46: 0.04960911672 | RP46: 0.04962736297 | RQ46: 0.04963938098 | RR46: 0.04963188126 | RS46: 0.04968864818 | RT46: 0.04972241703 | RU46: 0.04974379491 | RV46: 0.04974267175 | RW46: 0.04975495163 | RX46: 0.04978926945 | RY46: 0.04980398475 | RZ46: 0.04981611502 | SA46: 0.04981261021 | SB46: 0.0498429245 | SC46: 0.0498545796 | SD46: 0.04989469035 | SE46: 0.04991005585 | SF46: 0.04993889764 | SG46: 0.04993413897 | SH46: 0.04996700497 | SI46: 0.04996815808 | SJ46: 0.04999331665 | SK46: 0.04999347961 | SL46: 0.0500102312 | SM46: 0.0500066687 | SN46: 0.05000896661 | SO46: 0.05005151057 | SP46: 0.05007001363 | SQ46: 0.05006917534 | SR46: 0.05009583903 | SS46: 0.0500900105 | ST46: 0.05009752821 | SU46: 0.05010450475 | SV46: 0.05012016372 | SW46: 0.05012984925 | SX46: 0.0501521209 | SY46: 0.05016664433 | SZ46: 0.05018881947 | TA46: 0.05021028101 | TB46: 0.05023809241 | TC46: 0.05024739514 | TD46: 0.05028445878 | TE46: 0.05024612285 | TF46: 0.0502572226 | TG46: 0.05028218074 | TH46: 0.05029254075 | TI46: 0.05029677776 | TJ46: 0.05029903748 | TK46: 0.05029634755 | TL46: 0.05032332944 | TM46: 0.05030351647 | TN46: 0.05032584716 | TO46: 0.05032374354 | TP46: 0.05035662673 | TQ46: 0.05037626116 | TR46: 0.05039682035 | TS46: 0.05041589987 | TT46: 0.05044205755 | TU46: 0.05045391903 | TV46: 0.05046195013 | TW46: 0.05047640026 | TX46: 0.05047818831 | TY46: 0.05051857248 | TZ46: 0.05051817808 | UA46: 0.05052601311 | UB46: 0.050546733 | UC46: 0.05056308899 | UD46: 0.0505746206 | UE46: 0.05062073232 | UF46: 0.05060365468 | UG46: 0.05065417999 | UH46: 0.05062694295 | UI46: 0.05062170194 | UJ46: 0.05062042625 | UK46: 0.05063331316 | UL46: 0.05065673254 | UM46: 0.05064148312 | UN46: 0.05063979616 | UO46: 0.05064858031 | UP46: 0.05068015682 | UQ46: 0.05069080034 | UR46: 0.05069924654 | US46: 0.0506937649 | UT46: 0.05070091182 | UU46: 0.05064757292 | UV46: 0.05065113781 | UW46: 0.05066734719 | UX46: 0.05065230373 | UY46: 0.05065056768 | UZ46: 0.05065789772 | VA46: 0.05065422497 | VB46: 0.05065033512 | VC46: 0.05064202429 | VD46: 0.05065033691 | VE46: 0.05063717467 | VF46: 0.05063138293 | VG46: 0.05061387568 | VH46: 0.0506022139 | VI46: 0.05059000334 | VJ46: 0.05058540477 | VK46: 0.05060307456 | VL46: 0.05061925084 | VM46: 0.05058488912 | VN46: 0.05058972225 | VO46: 0.05058830016 | VP46: 0.05060238489 | VQ46: 0.05060534045 | VR46: 0.0506173624 | VS46: 0.05061086098 | VT46: 0.05059374294 | VU46: 0.05059375454 | VV46: 0.05057624914 | VW46: 0.050576497 | VX46: 0.05057393362 | VY46: 0.05056350526 | VZ46: 0.05053518274 | WA46: 0.0505194867 | WB46: 0.05052084117 | WC46: 0.05051203987 | WD46: 0.05052350377 | WE46: 0.05051440942 | WF46: 0.05050605482 | WG46: 0.05049005438 | WH46: 0.05048294136 | WI46: 0.0504793873 | WJ46: 0.05046260824 | WK46: 0.05046271631 | WL46: 0.05044341319 | WM46: 0.05044606828 | WN46: 0.05042777426 | WO46: 0.05040571635 | WP46: 0.05038198841 | WQ46: 0.05039003256 | WR46: 0.0504106576 | WS46: 0.05040802495 | WT46: 0.05040582734 | WU46: 0.05040707494 | WV46: 0.05042832926 | WW46: 0.05044308089 | WX46: 0.05044113205 | WY46: 0.05043730888 | WZ46: 0.05043641187 | XA46: 0.0504179273 | XB46: 0.05039769385 | XC46: 0.05042688912 | XD46: 0.05040327562 | XE46: 0.0504037518 | XF46: 0.0504024316 | XG46: 0.05042747602 | XH46: 0.05042728169 | XI46: 0.05042126953 | XJ46: 0.05040786252 | XK46: 0.05038419944 | XL46: 0.05038541228 | XM46: 0.05043118113 | XN46: 0.05042435449 | XO46: 0.05041022024 | XP46: 0.05042324717 | XQ46: 0.05044151402 | XR46: 0.05041999756 | XS46: 0.0504465233 | XT46: 0.05043633583 | XU46: 0.0504303657 | XV46: 0.05045071366 | XW46: 0.05043146985 | XX46: 0.05042608325 | XY46: 0.05041376199 | XZ46: 0.05039313087 | YA46: 0.05040363874 | YB46: 0.05038853572 | YC46: 0.05039136254 | YD46: 0.05040332569 | YE46: 0.05038626526 | YF46: 0.05038878299 | YG46: 0.05037257662 | YH46: 0.05038003172 | YI46: 0.05037502839 | YJ46: 0.05035389164 | YK46: 0.05036224646 | YL46: 0.05034964277 | YM46: 0.05034825796 | YN46: 0.05036832418 | YO46: 0.05037876652 | YP46: 0.05041223415 | YQ46: 0.050416796 | YR46: 0.05041619773 | YS46: 0.0503860926 | YT46: 0.05037985836 | YU46: 0.0503657385 | YV46: 0.05038661508 | YW46: 0.05036142022 | YX46: 0.05036448347 | YY46: 0.05036203542 | YZ46: 0.05038403994 | ZA46: 0.05039435706 | ZB46: 0.05039177864 | ZC46: 0.05038892592 | ZD46: 0.05040596297 | ZE46: 0.05043560247 | ZF46: 0.05042217647 | ZG46: 0.05043649834 | ZH46: 0.05044339129 | ZI46: 0.05048138877 | ZJ46: 0.0504743306 | ZK46: 0.05047411102 | ZL46: 0.05048475811 | ZM46: 0.05049839787 | ZN46: 0.05053915661 | ZO46: 0.0505739961 | ZP46: 0.0505963834 | ZQ46: 0.05061714711 | ZR46: 0.05060383746 | ZS46: 0.05061334955 | ZT46: 0.0505936493 | ZU46: 0.05060743718 | ZV46: 0.05059044972 | ZW46: 0.05062727628 | ZX46: 0.05062363919 | ZY46: 0.05060234252 | ZZ46: 0.05062195034 | AAA46: 0.05067376564 | AAB46: 0.05069813745 | AAC46: 0.05072434691 | AAD46: 0.05071191547 | AAE46: 0.05073991538 | AAF46: 0.0507478099 | AAG46: 0.05075768397 | AAH46: 0.05076567644 | AAI46: 0.05078283927 | AAJ46: 0.05078849645 | AAK46: 0.05080552427 | AAL46: 0.05079184075 | AAM46: 0.05077370876 | AAN46: 0.05080072581 | AAO46: 0.05079078852 | AAP46: 0.05078329531 | AAQ46: 0.05081895545 | AAR46: 0.05083566548 | AAS46: 0.05082338957 | AAT46: 0.05082879105 | AAU46: 0.05082151107 | AAV46: 0.05082605026 | AAW46: 0.05078769953 | AAX46: 0.05076874044 | AAY46: 0.05077992401 | AAZ46: 0.05079528806 | ABA46: 0.05076786467 | ABB46: 0.05075398555 | ABC46: 0.05074747567
A48: 0.0372 | B48: 0.03529745856 | C48: 0.03441143839 | D48: 0.03373844305 | E48: 0.03313328282 | F48: 0.03261132776 | G48: 0.03208503562 | H48: 0.03162898616 | I48: 0.03125602011 | J48: 0.03088986204 | K48: 0.0305757133 | L48: 0.03020028997 | M48: 0.02995420039 | N48: 0.02966170048 | O48: 0.02938407062 | P48: 0.02902521488 | Q48: 0.02879080899 | R48: 0.02847958552 | S48: 0.02832238685 | T48: 0.02806551128 | U48: 0.02785957512 | V48: 0.02759049192 | W48: 0.02739555228 | X48: 0.02717196362 | Y48: 0.02703130819 | Z48: 0.02691172664 | AA48: 0.0267291317 | AB48: 0.02661519854 | AC48: 0.02640756113 | AD48: 0.0261892055 | AE48: 0.02607604072 | AF48: 0.02588208628 | AG48: 0.02585285933 | AH48: 0.02561671721 | AI48: 0.02553511207 | AJ48: 0.02541068017 | AK48: 0.02531737256 | AL48: 0.02521820667 | AM48: 0.02507888052 | AN48: 0.02502320372 | AO48: 0.02492422353 | AP48: 0.02475372922 | AQ48: 0.02456550728 | AR48: 0.02448476604 | AS48: 0.02441222462 | AT48: 0.02425718206 | AU48: 0.02426977443 | AV48: 0.02421615821 | AW48: 0.0241022066 | AX48: 0.02405459234 | AY48: 0.0239324278 | AZ48: 0.02397160852 | BA48: 0.02392652454 | BB48: 0.02382569709 | BC48: 0.02382019987 | BD48: 0.02375385214 | BE48: 0.02367172648 | BF48: 0.02363691165 | BG48: 0.02357921273 | BH48: 0.02355121835 | BI48: 0.02352477975 | BJ48: 0.02358221308 | BK48: 0.02347102308 | BL48: 0.02342461128 | BM48: 0.02343869096 | BN48: 0.02339652855 | BO48: 0.02339877959 | BP48: 0.02327684357 | BQ48: 0.02338728851 | BR48: 0.02329016334 | BS48: 0.02326675454 | BT48: 0.02314835029 | BU48: 0.02319542927 | BV48: 0.02316462485 | BW48: 0.02313651182 | BX48: 0.02308799051 | BY48: 0.02309365626 | BZ48: 0.02312468456 | CA48: 0.02315762927 | CB48: 0.02319635447 | CC48: 0.02307269285 | CD48: 0.02315384133 | CE48: 0.02310507039 | CF48: 0.02306759659 | CG48: 0.02301716868 | CH48: 0.02305048487 | CI48: 0.02295004029 | CJ48: 0.02301540386 | CK48: 0.02301129508 | CL48: 0.02306664559 | CM48: 0.02299579689 | CN48: 0.02297636256 | CO48: 0.02289983751 | CP48: 0.02291719407 | CQ48: 0.02294941133 | CR48: 0.02292710102 | CS48: 0.0229109753 | CT48: 0.02283802551 | CU48: 0.02301821591 | CV48: 0.0230348277 | CW48: 0.02302652425 | CX48: 0.02296750964 | CY48: 0.02288531063 | CZ48: 0.02283973709 | DA48: 0.02287894666 | DB48: 0.02288973971 | DC48: 0.02289489599 | DD48: 0.02296226695 | DE48: 0.02294191967 | DF48: 0.02288868059 | DG48: 0.02293856458 | DH48: 0.02302413831 | DI48: 0.02298627025 | DJ48: 0.023031855 | DK48: 0.02305845408 | DL48: 0.02311189653 | DM48: 0.02319015644 | DN48: 0.02314848895 | DO48: 0.02308775886 | DP48: 0.02328924188 | DQ48: 0.02321408187 | DR48: 0.02322109507 | DS48: 0.02327306478 | DT48: 0.02322999776 | DU48: 0.02328945572 | DV48: 0.02325072244 | DW48: 0.02328351917 | DX48: 0.02333024729 | DY48: 0.02346348499 | DZ48: 0.02346886602 | EA48: 0.02352092047 | EB48: 0.0235512845 | EC48: 0.02349329656 | ED48: 0.02348455212 | EE48: 0.02342228566 | EF48: 0.02353750177 | EG48: 0.02349094226 | EH48: 0.0234994479 | EI48: 0.02349635938 | EJ48: 0.02353607038 | EK48: 0.02354717328 | EL48: 0.02350652122 | EM48: 0.02349576238 | EN48: 0.0233776348 | EO48: 0.02349206943 | EP48: 0.02340979461 | EQ48: 0.023468734 | ER48: 0.02357520916 | ES48: 0.0235196005 | ET48: 0.02355321467 | EU48: 0.02353431171 | EV48: 0.02347703678 | EW48: 0.02354621992 | EX48: 0.02349529806 | EY48: 0.02366981811 | EZ48: 0.02368046179 | FA48: 0.02364840353 | FB48: 0.02374846461 | FC48: 0.0237818031 | FD48: 0.02376787426 | FE48: 0.02376755107 | FF48: 0.02370597052 | FG48: 0.02373759889 | FH48: 0.02387570742 | FI48: 0.02383715955 | FJ48: 0.02384397204 | FK48: 0.02389350097 | FL48: 0.02391873441 | FM48: 0.02382916208 | FN48: 0.02382952261 | FO48: 0.02382151294 | FP48: 0.02385626497 | FQ48: 0.02384168832 | FR48: 0.02392977912 | FS48: 0.0239444485 | FT48: 0.02395554287 | FU48: 0.02395346147 | FV48: 0.02403126978 | FW48: 0.02408870003 | FX48: 0.02398971314 | FY48: 0.02413159838 | FZ48: 0.02401455298 | GA48: 0.02409412702 | GB48: 0.02424692258 | GC48: 0.02423743178 | GD48: 0.02424296554 | GE48: 0.02435898003 | GF48: 0.02433203901 | GG48: 0.0243328207 | GH48: 0.02435678758 | GI48: 0.0243565002 | GJ48: 0.02434981594 | GK48: 0.02432951244 | GL48: 0.02418465943 | GM48: 0.02421749421 | GN48: 0.02434098825 | GO48: 0.02451113 | GP48: 0.02442642563 | GQ48: 0.02446070648 | GR48: 0.02460168145 | GS48: 0.02464215395 | GT48: 0.02462486566 | GU48: 0.02462874317 | GV48: 0.0246608712 | GW48: 0.02468458523 | GX48: 0.02470002016 | GY48: 0.0248004832 | GZ48: 0.02479619197 | HA48: 0.02474281414 | HB48: 0.02482496227 | HC48: 0.02485180239 | HD48: 0.02484730052 | HE48: 0.02479793212 | HF48: 0.02492781483 | HG48: 0.0249472635 | HH48: 0.02497569474 | HI48: 0.02503233465 | HJ48: 0.02493936698 | HK48: 0.02488933835 | HL48: 0.02496974451 | HM48: 0.02495530452 | HN48: 0.02495736943 | HO48: 0.02483036909 | HP48: 0.0249371868 | HQ48: 0.02504990362 | HR48: 0.02502878109 | HS48: 0.02509200078 | HT48: 0.02510096631 | HU48: 0.02508173806 | HV48: 0.02506772222 | HW48: 0.02512979996 | HX48: 0.02520914565 | HY48: 0.02509431419 | HZ48: 0.0249928648 | IA48: 0.02510347954 | IB48: 0.02521431453 | IC48: 0.02546286363 | ID48: 0.02534461496 | IE48: 0.02548382823 | IF48: 0.02535360144 | IG48: 0.02540792285 | IH48: 0.02540700066 | II48: 0.02551149874 | IJ48: 0.02541347169 | IK48: 0.02535700912 | IL48: 0.02537975359 | IM48: 0.02553358636 | IN48: 0.0254453965 | IO48: 0.02551055346 | IP48: 0.02557639822 | IQ48: 0.02564655515 | IR48: 0.02566280757 | IS48: 0.02559135086 | IT48: 0.02565410569 | IU48: 0.02562687441 | IV48: 0.0256323031 | IW48: 0.02572802398 | IX48: 0.02570854282 | IY48: 0.02571114231 | IZ48: 0.02582490896 | JA48: 0.02579576721 | JB48: 0.02575082766 | JC48: 0.02571872202 | JD48: 0.02569639375 | JE48: 0.02577954168 | JF48: 0.02578476828 | JG48: 0.02574850218 | JH48: 0.02561376211 | JI48: 0.02577740668 | JJ48: 0.02578224691 | JK48: 0.02582119812 | JL48: 0.02580825405 | JM48: 0.02591913962 | JN48: 0.02591046198 | JO48: 0.02592212959 | JP48: 0.02591896858 | JQ48: 0.02594783755 | JR48: 0.02588674525 | JS48: 0.02588930602 | JT48: 0.02584250011 | JU48: 0.02589651593 | JV48: 0.02588835728 | JW48: 0.02591544731 | JX48: 0.02590380714 | JY48: 0.02598563069 | JZ48: 0.02586812379 | KA48: 0.02593140358 | KB48: 0.02599019831 | KC48: 0.025984029 | KD48: 0.02602522118 | KE48: 0.02605273997 | KF48: 0.02609353322 | KG48: 0.02598887284 | KH48: 0.02603177989 | KI48: 0.0261101778 | KJ48: 0.02599217515 | KK48: 0.02608598735 | KL48: 0.02591526323 | KM48: 0.02595338074 | KN48: 0.026014648 | KO48: 0.02598960128 | KP48: 0.02605738825 | KQ48: 0.02603137831 | KR48: 0.02605271127 | KS48: 0.02602839254 | KT48: 0.02605696729 | KU48: 0.02600166833 | KV48: 0.0260277687 | KW48: 0.0260457315 | KX48: 0.02605008109 | KY48: 0.02597307902 | KZ48: 0.02601248217 | LA48: 0.02604422701 | LB48: 0.02606945817 | LC48: 0.02607550594 | LD48: 0.02604433297 | LE48: 0.02613598988 | LF48: 0.02615712979 | LG48: 0.02615742416 | LH48: 0.0262149777 | LI48: 0.02606437971 | LJ48: 0.02621246107 | LK48: 0.02620104571 | LL48: 0.02628118769 | LM48: 0.02609744403 | LN48: 0.0261781056 | LO48: 0.02619119196 | LP48: 0.02625040808 | LQ48: 0.02621834488 | LR48: 0.0262361064 | LS48: 0.02633133073 | LT48: 0.02625519397 | LU48: 0.02623369656 | LV48: 0.0264034434 | LW48: 0.02639543727 | LX48: 0.0263778982 | LY48: 0.02634148797 | LZ48: 0.02633243556 | MA48: 0.02646498563 | MB48: 0.0265136851 | MC48: 0.02644737908 | MD48: 0.02638916088 | ME48: 0.02643760568 | MF48: 0.02653128281 | MG48: 0.0265729666 | MH48: 0.02644481248 | MI48: 0.02650289314 | MJ48: 0.02652226788 | MK48: 0.02655207241 | ML48: 0.02659115291 | MM48: 0.02650867332 | MN48: 0.02650176732 | MO48: 0.0262950386 | MP48: 0.02631965856 | MQ48: 0.02630885072 | MR48: 0.02620550058 | MS48: 0.02614827358 | MT48: 0.02629255963 | MU48: 0.02629237436 | MV48: 0.02626935252 | MW48: 0.02624212587 | MX48: 0.02618457228 | MY48: 0.02609175883 | MZ48: 0.02611424081 | NA48: 0.02614812121 | NB48: 0.02617805101 | NC48: 0.02612790869 | ND48: 0.02610389026 | NE48: 0.02616636073 | NF48: 0.0261810012 | NG48: 0.02620596518 | NH48: 0.02630018474 | NI48: 0.02623592958 | NJ48: 0.02624398897 | NK48: 0.02629159544 | NL48: 0.0261850274 | NM48: 0.02634203169 | NN48: 0.02624232512 | NO48: 0.02617563605 | NP48: 0.02624611771 | NQ48: 0.02623915212 | NR48: 0.02633394832 | NS48: 0.02638078639 | NT48: 0.02638514185 | NU48: 0.02644364993 | NV48: 0.02635960226 | NW48: 0.02640617924 | NX48: 0.02648484036 | NY48: 0.02639159101 | NZ48: 0.02642479467 | OA48: 0.02652593725 | OB48: 0.02664704646 | OC48: 0.02658372137 | OD48: 0.02659591255 | OE48: 0.02643556813 | OF48: 0.02660622134 | OG48: 0.02669103307 | OH48: 0.02670942045 | OI48: 0.02653237004 | OJ48: 0.02657371508 | OK48: 0.02664927675 | OL48: 0.0266210178 | OM48: 0.02659800923 | ON48: 0.02657832916 | OO48: 0.02658882296 | OP48: 0.02654566355 | OQ48: 0.02650474226 | OR48: 0.02655600884 | OS48: 0.02649266954 | OT48: 0.02659712626 | OU48: 0.02655386721 | OV48: 0.02660919145 | OW48: 0.02650889076 | OX48: 0.02665606624 | OY48: 0.02673921481 | OZ48: 0.0265881 | PA48: 0.02663782016 | PB48: 0.02658393681 | PC48: 0.02667966083 | PD48: 0.02670967326 | PE48: 0.02664775233 | PF48: 0.02673245672 | PG48: 0.02679091382 | PH48: 0.02693300192 | PI48: 0.02679079606 | PJ48: 0.02683536064 | PK48: 0.02671727658 | PL48: 0.02684331395 | PM48: 0.02682692146 | PN48: 0.02667530271 | PO48: 0.02679949477 | PP48: 0.02680087421 | PQ48: 0.02673644026 | PR48: 0.0268205917 | PS48: 0.02679656844 | PT48: 0.02671469307 | PU48: 0.02671856673 | PV48: 0.02666000527 | PW48: 0.02665262822 | PX48: 0.02663745831 | PY48: 0.02661903287 | PZ48: 0.02667727098 | QA48: 0.02681418336 | QB48: 0.02682792126 | QC48: 0.02671958069 | QD48: 0.02681936714 | QE48: 0.02672589048 | QF48: 0.02669986514 | QG48: 0.02662241347 | QH48: 0.02667315272 | QI48: 0.02668604426 | QJ48: 0.02671599052 | QK48: 0.02671028769 | QL48: 0.02670435186 | QM48: 0.02658060349 | QN48: 0.02671799182 | QO48: 0.02673547068 | QP48: 0.0265625737 | QQ48: 0.02671706098 | QR48: 0.02671463538 | QS48: 0.02675671107 | QT48: 0.02678150702 | QU48: 0.02688662649 | QV48: 0.02680336155 | QW48: 0.02689394169 | QX48: 0.02690899649 | QY48: 0.02689648135 | QZ48: 0.02670452037 | RA48: 0.02702170388 | RB48: 0.02686511434 | RC48: 0.02692811124 | RD48: 0.02688824869 | RE48: 0.02693034728 | RF48: 0.02677453011 | RG48: 0.02678495475 | RH48: 0.02675915049 | RI48: 0.02680718216 | RJ48: 0.02683659148 | RK48: 0.02687019444 | RL48: 0.02687647385 | RM48: 0.0268314479 | RN48: 0.02688634175 | RO48: 0.02682706114 | RP48: 0.02696717748 | RQ48: 0.02685344324 | RR48: 0.02683323904 | RS48: 0.02692278231 | RT48: 0.02689264743 | RU48: 0.02668652423 | RV48: 0.02678532057 | RW48: 0.02675274076 | RX48: 0.02684537433 | RY48: 0.02680181062 | RZ48: 0.02682492175 | SA48: 0.02684553551 | SB48: 0.02691893696 | SC48: 0.02693443382 | SD48: 0.0269701877 | SE48: 0.02696912474 | SF48: 0.02705190191 | SG48: 0.02710006205 | SH48: 0.02707004647 | SI48: 0.02712506738 | SJ48: 0.02711878478 | SK48: 0.02708365373 | SL48: 0.0270059178 | SM48: 0.02694766621 | SN48: 0.02704664223 | SO48: 0.02704398177 | SP48: 0.027114004 | SQ48: 0.0271284774 | SR48: 0.02724528081 | SS48: 0.02706661812 | ST48: 0.02700443457 | SU48: 0.02695809499 | SV48: 0.02714588382 | SW48: 0.02708217124 | SX48: 0.02711057299 | SY48: 0.02712903246 | SZ48: 0.02724143271 | TA48: 0.02716372114 | TB48: 0.02722978951 | TC48: 0.02720834973 | TD48: 0.02704838608 | TE48: 0.0271705802 | TF48: 0.02715658836 | TG48: 0.02727927598 | TH48: 0.02734384899 | TI48: 0.02722100718 | TJ48: 0.02722473612 | TK48: 0.0272119679 | TL48: 0.02720291327 | TM48: 0.0271994073 | TN48: 0.02719417221 | TO48: 0.02705995 | TP48: 0.02701805998 | TQ48: 0.02705152046 | TR48: 0.02713226219 | TS48: 0.0270780542 | TT48: 0.02708522155 | TU48: 0.02730961751 | TV48: 0.02733610206 | TW48: 0.02717387573 | TX48: 0.02720428617 | TY48: 0.02722646851 | TZ48: 0.02716906164 | UA48: 0.02726169496 | UB48: 0.02730373257 | UC48: 0.02720485453 | UD48: 0.02726448717 | UE48: 0.02716649425 | UF48: 0.02717323495 | UG48: 0.0274283455 | UH48: 0.02727013917 | UI48: 0.02736602757 | UJ48: 0.02726638476 | UK48: 0.02740438534 | UL48: 0.02735295799 | UM48: 0.02735611323 | UN48: 0.02745006654 | UO48: 0.02735891244 | UP48: 0.02731536684 | UQ48: 0.02725951787 | UR48: 0.02718145631 | US48: 0.02713838909 | UT48: 0.02726636266 | UU48: 0.02723023524 | UV48: 0.02737681143 | UW48: 0.02726205474 | UX48: 0.02730866801 | UY48: 0.0272905741 | UZ48: 0.02735318796 | VA48: 0.02745315449 | VB48: 0.02742650043 | VC48: 0.02741993743 | VD48: 0.02743401604 | VE48: 0.02746047799 | VF48: 0.0274842292 | VG48: 0.02747052942 | VH48: 0.02752243176 | VI48: 0.02758889413 | VJ48: 0.02755513616 | VK48: 0.0275706933 | VL48: 0.02761266457 | VM48: 0.02756144568 | VN48: 0.02764326501 | VO48: 0.02767572823 | VP48: 0.02753831543 | VQ48: 0.02757043981 | VR48: 0.02768324716 | VS48: 0.02764706136 | VT48: 0.02760706555 | VU48: 0.02756944365 | VV48: 0.02757582028 | VW48: 0.02756483582 | VX48: 0.02754405904 | VY48: 0.02749469203 | VZ48: 0.02760124381 | WA48: 0.02753273981 | WB48: 0.02764386584 | WC48: 0.02753526358 | WD48: 0.02759997938 | WE48: 0.02762344485 | WF48: 0.02765195812 | WG48: 0.0277318758 | WH48: 0.02769879271 | WI48: 0.02777673392 | WJ48: 0.02769605313 | WK48: 0.02756779634 | WL48: 0.02767588736 | WM48: 0.02752686387 | WN48: 0.0275982704 | WO48: 0.02759691691 | WP48: 0.0275811723 | WQ48: 0.02763264989 | WR48: 0.02757934886 | WS48: 0.02748793691 | WT48: 0.02750768411 | WU48: 0.02750325838 | WV48: 0.02762325269 | WW48: 0.02757781064 | WX48: 0.02759284266 | WY48: 0.02758100153 | WZ48: 0.02746813514 | XA48: 0.02746558455 | XB48: 0.02748234532 | XC48: 0.0274525923 | XD48: 0.02752131862 | XE48: 0.02748539487 | XF48: 0.02758904605 | XG48: 0.02740802777 | XH48: 0.02746127171 | XI48: 0.02741572794 | XJ48: 0.02743654012 | XK48: 0.02744232701 | XL48: 0.02743928502 | XM48: 0.02762606875 | XN48: 0.02740672283 | XO48: 0.02750734933 | XP48: 0.02752694643 | XQ48: 0.02759936644 | XR48: 0.02743133732 | XS48: 0.02743652081 | XT48: 0.02740953004 | XU48: 0.02750996963 | XV48: 0.02748497514 | XW48: 0.02747856884 | XX48: 0.02757583893 | XY48: 0.02760295867 | XZ48: 0.02754606996 | YA48: 0.02754304534 | YB48: 0.02750530261 | YC48: 0.0275815424 | YD48: 0.0276133804 | YE48: 0.02754018313 | YF48: 0.02755699659 | YG48: 0.02757357635 | YH48: 0.02773820126 | YI48: 0.02764202475 | YJ48: 0.02766582172 | YK48: 0.02770277662 | YL48: 0.02762103282 | YM48: 0.02755129746 | YN48: 0.02747486674 | YO48: 0.02743964223 | YP48: 0.02737917316 | YQ48: 0.02746867709 | YR48: 0.02742388396 | YS48: 0.02738490262 | YT48: 0.02736328258 | YU48: 0.02727670213 | YV48: 0.02735286904 | YW48: 0.02725892024 | YX48: 0.02723666907 | YY48: 0.02726941383 | YZ48: 0.02728783291 | ZA48: 0.0272437876 | ZB48: 0.02737104398 | ZC48: 0.02722402902 | ZD48: 0.02716559657 | ZE48: 0.02723223054 | ZF48: 0.02721214077 | ZG48: 0.02712177362 | ZH48: 0.02722822698 | ZI48: 0.0271788543 | ZJ48: 0.02722617849 | ZK48: 0.02724115524 | ZL48: 0.02729398646 | ZM48: 0.02728438237 | ZN48: 0.02729698531 | ZO48: 0.02721086482 | ZP48: 0.02723533625 | ZQ48: 0.02723803537 | ZR48: 0.02722910407 | ZS48: 0.02732831075 | ZT48: 0.02739937797 | ZU48: 0.02745907206 | ZV48: 0.02747266035 | ZW48: 0.02738497032 | ZX48: 0.02744414527 | ZY48: 0.02740709776 | ZZ48: 0.02748581201 | AAA48: 0.02746834122 | AAB48: 0.02744063822 | AAC48: 0.02754660937 | AAD48: 0.02776128571 | AAE48: 0.02763550948 | AAF48: 0.02767048239 | AAG48: 0.02769281246 | AAH48: 0.02762659397 | AAI48: 0.02756638091 | AAJ48: 0.02750862693 | AAK48: 0.02750918721 | AAL48: 0.02738699304 | AAM48: 0.02743204296 | AAN48: 0.02756584286 | AAO48: 0.02752317866 | AAP48: 0.02756438073 | AAQ48: 0.02750762512 | AAR48: 0.02740617159 | AAS48: 0.02737381874 | AAT48: 0.02734080342 | AAU48: 0.02724146883 | AAV48: 0.02728058179 | AAW48: 0.02717239339 | AAX48: 0.02719872299 | AAY48: 0.02709159284 | AAZ48: 0.02724129434 | ABA48: 0.02722914075 | ABB48: 0.02728920431 | ABC48: 0.02730416419
A50: 0.0372 | B50: 0.0342634813 | C50: 0.03300721146 | D50: 0.03200884658 | E50: 0.0311445765 | F50: 0.0303200966 | G50: 0.02976103325 | H50: 0.02897862846 | I50: 0.02836449779 | J50: 0.02769767987 | K50: 0.02752571853 | L50: 0.02693808711 | M50: 0.02664467895 | N50: 0.02602199132 | O50: 0.02564934889 | P50: 0.02524527333 | Q50: 0.02507435982 | R50: 0.0246800959 | S50: 0.02420897053 | T50: 0.02395416479 | U50: 0.02366256191 | V50: 0.02350748805 | W50: 0.02322959794 | X50: 0.02325576912 | Y50: 0.02290016794 | Z50: 0.02242310393 | AA50: 0.02236403222 | AB50: 0.02189997522 | AC50: 0.02189207824 | AD50: 0.02164410458 | AE50: 0.02157491338 | AF50: 0.02124872604 | AG50: 0.02093798164 | AH50: 0.02101462611 | AI50: 0.02072048266 | AJ50: 0.02071832588 | AK50: 0.02036586487 | AL50: 0.02021548807 | AM50: 0.01992313973 | AN50: 0.01983852807 | AO50: 0.01964881624 | AP50: 0.01930893365 | AQ50: 0.01899299805 | AR50: 0.01922849876 | AS50: 0.01901256237 | AT50: 0.01898846124 | AU50: 0.01881517592 | AV50: 0.01888281434 | AW50: 0.01866520675 | AX50: 0.01880562668 | AY50: 0.0188381612 | AZ50: 0.01868465724 | BA50: 0.01855600208 | BB50: 0.01853424392 | BC50: 0.01851749941 | BD50: 0.01845717629 | BE50: 0.01821548164 | BF50: 0.01806909291 | BG50: 0.01787263835 | BH50: 0.0179618232 | BI50: 0.0178910002 | BJ50: 0.01785881639 | BK50: 0.01780653287 | BL50: 0.01787867685 | BM50: 0.01789763176 | BN50: 0.01784664349 | BO50: 0.01762784993 | BP50: 0.01749120383 | BQ50: 0.0174448113 | BR50: 0.01724080427 | BS50: 0.01715750615 | BT50: 0.01703265969 | BU50: 0.01651015086 | BV50: 0.01681747769 | BW50: 0.01663841842 | BX50: 0.01659935405 | BY50: 0.01673720488 | BZ50: 0.01664834961 | CA50: 0.01665526412 | CB50: 0.0164060288 | CC50: 0.01655010311 | CD50: 0.01653103541 | CE50: 0.01649929401 | CF50: 0.01643326117 | CG50: 0.0163839412 | CH50: 0.01642726337 | CI50: 0.01650722208 | CJ50: 0.01645532477 | CK50: 0.01623085007 | CL50: 0.01611412981 | CM50: 0.01624476123 | CN50: 0.01640791508 | CO50: 0.01629496942 | CP50: 0.01630848467 | CQ50: 0.01621747185 | CR50: 0.0162100213 | CS50: 0.01624714356 | CT50: 0.01623339788 | CU50: 0.01605776632 | CV50: 0.01609364579 | CW50: 0.01601990486 | CX50: 0.01601533807 | CY50: 0.01600813618 | CZ50: 0.01601997973 | DA50: 0.01566983834 | DB50: 0.01585958615 | DC50: 0.01601711981 | DD50: 0.01597122756 | DE50: 0.01613256058 | DF50: 0.01617233781 | DG50: 0.01653575822 | DH50: 0.01645640652 | DI50: 0.01662987511 | DJ50: 0.0165530846 | DK50: 0.01651394394 | DL50: 0.01657934125 | DM50: 0.01631070562 | DN50: 0.01646944809 | DO50: 0.01629554158 | DP50: 0.01619158508 | DQ50: 0.01635674757 | DR50: 0.01640298506 | DS50: 0.01627656477 | DT50: 0.01634091844 | DU50: 0.01620616837 | DV50: 0.0163141174 | DW50: 0.01635385682 | DX50: 0.0164963545 | DY50: 0.01650898994 | DZ50: 0.01662636062 | EA50: 0.01646724933 | EB50: 0.0163821758 | EC50: 0.01645412212 | ED50: 0.01643677174 | EE50: 0.01660716748 | EF50: 0.01673056446 | EG50: 0.01702476205 | EH50: 0.0171024169 | EI50: 0.01721499249 | EJ50: 0.01717630608 | EK50: 0.01713201772 | EL50: 0.01704822333 | EM50: 0.01718567309 | EN50: 0.01696097197 | EO50: 0.01698929488 | EP50: 0.0170207947 | EQ50: 0.01699984779 | ER50: 0.01715438028 | ES50: 0.01738975895 | ET50: 0.01732172296 | EU50: 0.01734787352 | EV50: 0.01742215281 | EW50: 0.01790583718 | EX50: 0.01753806727 | EY50: 0.0176603872 | EZ50: 0.0175352559 | FA50: 0.01745409115 | FB50: 0.01763238027 | FC50: 0.01728329108 | FD50: 0.0176634377 | FE50: 0.01730023561 | FF50: 0.01746449584 | FG50: 0.0173045218 | FH50: 0.0174415499 | FI50: 0.01728635188 | FJ50: 0.01733226823 | FK50: 0.01721349134 | FL50: 0.01724959934 | FM50: 0.01703373372 | FN50: 0.01722234404 | FO50: 0.01736852521 | FP50: 0.01741774835 | FQ50: 0.0173286286 | FR50: 0.01731711935 | FS50: 0.01740878762 | FT50: 0.0172982053 | FU50: 0.01711954362 | FV50: 0.01706490188 | FW50: 0.01683859217 | FX50: 0.01693431258 | FY50: 0.01698591872 | FZ50: 0.01694476019 | GA50: 0.01700532005 | GB50: 0.01696667244 | GC50: 0.0168819527 | GD50: 0.01697423537 | GE50: 0.01692652104 | GF50: 0.01712453688 | GG50: 0.01708919936 | GH50: 0.01714300907 | GI50: 0.01707682966 | GJ50: 0.01708268584 | GK50: 0.01711872157 | GL50: 0.01723054261 | GM50: 0.01742587617 | GN50: 0.01764628021 | GO50: 0.01739804852 | GP50: 0.01793390168 | GQ50: 0.01784267131 | GR50: 0.01786016273 | GS50: 0.01773314144 | GT50: 0.01775825474 | GU50: 0.01777363993 | GV50: 0.0176727092 | GW50: 0.01751837977 | GX50: 0.01755395741 | GY50: 0.01742028971 | GZ50: 0.0176964875 | HA50: 0.01786422598 | HB50: 0.01807930217 | HC50: 0.01800717537 | HD50: 0.01801434416 | HE50: 0.0180692593 | HF50: 0.01816413934 | HG50: 0.01812009786 | HH50: 0.01820525649 | HI50: 0.01808557084 | HJ50: 0.01823565579 | HK50: 0.01817563511 | HL50: 0.01839815258 | HM50: 0.01828550364 | HN50: 0.01815766066 | HO50: 0.01842641737 | HP50: 0.01857837811 | HQ50: 0.01848568646 | HR50: 0.01809816822 | HS50: 0.01832864594 | HT50: 0.01825440942 | HU50: 0.01815104274 | HV50: 0.01844203846 | HW50: 0.01844070886 | HX50: 0.01864179251 | HY50: 0.01850003388 | HZ50: 0.01849810811 | IA50: 0.01835943358 | IB50: 0.01818514865 | IC50: 0.0182483478 | ID50: 0.01815298264 | IE50: 0.01803356093 | IF50: 0.01814539998 | IG50: 0.01862358435 | IH50: 0.01866515479 | II50: 0.01863627859 | IJ50: 0.01846620438 | IK50: 0.01858856244 | IL50: 0.01873573183 | IM50: 0.018637027 | IN50: 0.01855246417 | IO50: 0.01852887633 | IP50: 0.01866875527 | IQ50: 0.01845477366 | IR50: 0.01816185009 | IS50: 0.01811421503 | IT50: 0.01839055258 | IU50: 0.01848889808 | IV50: 0.01868159696 | IW50: 0.01859477538 | IX50: 0.01834535196 | IY50: 0.01827925534 | IZ50: 0.01868662217 | JA50: 0.01862535151 | JB50: 0.01893070098 | JC50: 0.01881695393 | JD50: 0.01885556149 | JE50: 0.01881271595 | JF50: 0.01881874292 | JG50: 0.01868426691 | JH50: 0.01876858902 | JI50: 0.01885839413 | JJ50: 0.0188373981 | JK50: 0.01875271059 | JL50: 0.01884096992 | JM50: 0.01876022434 | JN50: 0.01874042374 | JO50: 0.01851890399 | JP50: 0.0183129295 | JQ50: 0.01834025172 | JR50: 0.01855721387 | JS50: 0.01870182343 | JT50: 0.01866984539 | JU50: 0.0187928993 | JV50: 0.01865445433 | JW50: 0.01862117581 | JX50: 0.01898572045 | JY50: 0.0188531418 | JZ50: 0.01893817499 | KA50: 0.0186762926 | KB50: 0.0186300542 | KC50: 0.01872526262 | KD50: 0.01873969744 | KE50: 0.01875584933 | KF50: 0.01875854167 | KG50: 0.01872439794 | KH50: 0.01867007944 | KI50: 0.01851326262 | KJ50: 0.01843268845 | KK50: 0.01838535945 | KL50: 0.01858740849 | KM50: 0.01848984411 | KN50: 0.01841447726 | KO50: 0.01865577307 | KP50: 0.01863917536 | KQ50: 0.01845269058 | KR50: 0.0187175277 | KS50: 0.01872558842 | KT50: 0.01884610427 | KU50: 0.01888966719 | KV50: 0.01871184008 | KW50: 0.01880294444 | KX50: 0.0189031951 | KY50: 0.01876826139 | KZ50: 0.01856696937 | LA50: 0.01890514593 | LB50: 0.01885577949 | LC50: 0.01869420252 | LD50: 0.01884377406 | LE50: 0.01883762663 | LF50: 0.01872980025 | LG50: 0.01870679574 | LH50: 0.01877058841 | LI50: 0.01873175917 | LJ50: 0.01866672882 | LK50: 0.01874430214 | LL50: 0.01887552961 | LM50: 0.0187428322 | LN50: 0.01864567024 | LO50: 0.01874147118 | LP50: 0.01870669071 | LQ50: 0.01849468569 | LR50: 0.01852908213 | LS50: 0.01870575893 | LT50: 0.01879328431 | LU50: 0.01863251218 | LV50: 0.01861589853 | LW50: 0.01875692517 | LX50: 0.01878365032 | LY50: 0.01869580658 | LZ50: 0.01859934842 | MA50: 0.01857390258 | MB50: 0.01859646666 | MC50: 0.01857092435 | MD50: 0.01874405691 | ME50: 0.01860295288 | MF50: 0.0188872694 | MG50: 0.01869460028 | MH50: 0.01903186651 | MI50: 0.01877573125 | MJ50: 0.01865175873 | MK50: 0.0187260896 | ML50: 0.01862563806 | MM50: 0.01867866365 | MN50: 0.01856007291 | MO50: 0.01867985366 | MP50: 0.01872926276 | MQ50: 0.0186663881 | MR50: 0.01846931178 | MS50: 0.01849363377 | MT50: 0.01849800466 | MU50: 0.01831349229 | MV50: 0.01828271366 | MW50: 0.01811555556 | MX50: 0.0184434014 | MY50: 0.01850248342 | MZ50: 0.01842965959 | NA50: 0.018230842 | NB50: 0.01835466057 | NC50: 0.01855043474 | ND50: 0.01840480678 | NE50: 0.01864903318 | NF50: 0.01853085604 | NG50: 0.01863858119 | NH50: 0.01887622023 | NI50: 0.01882624487 | NJ50: 0.01903810798 | NK50: 0.01920473005 | NL50: 0.01931118269 | NM50: 0.01902312304 | NN50: 0.01896222189 | NO50: 0.01920867228 | NP50: 0.01918817518 | NQ50: 0.01874608253 | NR50: 0.01876951949 | NS50: 0.01876758661 | NT50: 0.0187646014 | NU50: 0.01888861882 | NV50: 0.0188005598 | NW50: 0.01867392144 | NX50: 0.01861831591 | NY50: 0.01881781444 | NZ50: 0.01852140313 | OA50: 0.01860299069 | OB50: 0.0188081704 | OC50: 0.0184857814 | OD50: 0.01871905101 | OE50: 0.01884361801 | OF50: 0.01883656452 | OG50: 0.0188356808 | OH50: 0.01882298632 | OI50: 0.01878445898 | OJ50: 0.0187184495 | OK50: 0.01830011113 | OL50: 0.01860253883 | OM50: 0.01831066816 | ON50: 0.01835867764 | OO50: 0.01862802953 | OP50: 0.01883938296 | OQ50: 0.01851208833 | OR50: 0.01870372593 | OS50: 0.01889015041 | OT50: 0.01895373633 | OU50: 0.01907845598 | OV50: 0.01893307442 | OW50: 0.01896898979 | OX50: 0.01882113825 | OY50: 0.01874988018 | OZ50: 0.01880746905 | PA50: 0.01882410214 | PB50: 0.01861132022 | PC50: 0.01905966268 | PD50: 0.01902459997 | PE50: 0.01892421757 | PF50: 0.01916751535 | PG50: 0.01917651521 | PH50: 0.01879043754 | PI50: 0.01875510381 | PJ50: 0.01904996413 | PK50: 0.01879814606 | PL50: 0.01888891099 | PM50: 0.01897656165 | PN50: 0.01879663404 | PO50: 0.0189621336 | PP50: 0.01891458476 | PQ50: 0.01908002117 | PR50: 0.01919768913 | PS50: 0.01931445829 | PT50: 0.01904622992 | PU50: 0.01885778896 | PV50: 0.0191472897 | PW50: 0.01875223477 | PX50: 0.0188584636 | PY50: 0.01889095181 | PZ50: 0.01898504689 | QA50: 0.01912143352 | QB50: 0.01913485809 | QC50: 0.01928777416 | QD50: 0.01916798397 | QE50: 0.0192372285 | QF50: 0.01912159089 | QG50: 0.01905829134 | QH50: 0.01905510343 | QI50: 0.01897779687 | QJ50: 0.01870381826 | QK50: 0.01882822314 | QL50: 0.01873892966 | QM50: 0.01882229063 | QN50: 0.01871278999 | QO50: 0.01869010864 | QP50: 0.01874318573 | QQ50: 0.01862767331 | QR50: 0.01869136497 | QS50: 0.01855912227 | QT50: 0.01873312181 | QU50: 0.01861416471 | QV50: 0.0187847665 | QW50: 0.01869143824 | QX50: 0.01861022542 | QY50: 0.01874315902 | QZ50: 0.01892741712 | RA50: 0.01898386968 | RB50: 0.01877888999 | RC50: 0.01860458103 | RD50: 0.01864495616 | RE50: 0.01891823796 | RF50: 0.01859563163 | RG50: 0.01887913881 | RH50: 0.01889178592 | RI50: 0.01881922193 | RJ50: 0.0187560121 | RK50: 0.01866275815 | RL50: 0.01885418457 | RM50: 0.01890263875 | RN50: 0.01875905182 | RO50: 0.01883805192 | RP50: 0.01876840604 | RQ50: 0.01875933064 | RR50: 0.01881736717 | RS50: 0.01877261458 | RT50: 0.01881843466 | RU50: 0.01901220944 | RV50: 0.01893927478 | RW50: 0.01883783316 | RX50: 0.01923698959 | RY50: 0.01962018247 | RZ50: 0.01965221735 | SA50: 0.01943298652 | SB50: 0.0192960433 | SC50: 0.01904323619 | SD50: 0.0193425403 | SE50: 0.01941952201 | SF50: 0.0194787552 | SG50: 0.01934308404 | SH50: 0.01912800623 | SI50: 0.01925679921 | SJ50: 0.01917131388 | SK50: 0.01938104177 | SL50: 0.01909900146 | SM50: 0.01934963573 | SN50: 0.01935009435 | SO50: 0.01934851427 | SP50: 0.01929295492 | SQ50: 0.01918689381 | SR50: 0.01952012825 | SS50: 0.01904543245 | ST50: 0.0190196417 | SU50: 0.01949053308 | SV50: 0.01947097844 | SW50: 0.01931436287 | SX50: 0.01903932676 | SY50: 0.01921561313 | SZ50: 0.01927788895 | TA50: 0.01927255279 | TB50: 0.01909210287 | TC50: 0.01913811346 | TD50: 0.01944887532 | TE50: 0.01918726399 | TF50: 0.01928750986 | TG50: 0.01934146036 | TH50: 0.01953514443 | TI50: 0.01926037052 | TJ50: 0.01939771961 | TK50: 0.01964536812 | TL50: 0.01966174166 | TM50: 0.0195458179 | TN50: 0.01939886726 | TO50: 0.01933798716 | TP50: 0.01945969247 | TQ50: 0.01934508797 | TR50: 0.01939800086 | TS50: 0.01950057631 | TT50: 0.01946645323 | TU50: 0.01954054059 | TV50: 0.0196246617 | TW50: 0.01924827588 | TX50: 0.01928076134 | TY50: 0.01961713365 | TZ50: 0.01958284176 | UA50: 0.01921768813 | UB50: 0.01919024171 | UC50: 0.01927478946 | UD50: 0.01946588834 | UE50: 0.01956838064 | UF50: 0.01958345766 | UG50: 0.01966987255 | UH50: 0.01971287718 | UI50: 0.01961454165 | UJ50: 0.01964137033 | UK50: 0.01950235933 | UL50: 0.01957232352 | UM50: 0.01969503902 | UN50: 0.01953980328 | UO50: 0.01929914285 | UP50: 0.01923770423 | UQ50: 0.01944901185 | UR50: 0.01923026046 | US50: 0.01923826499 | UT50: 0.01928609814 | UU50: 0.01923122479 | UV50: 0.01911211318 | UW50: 0.01927307132 | UX50: 0.01924473504 | UY50: 0.01908543763 | UZ50: 0.0189199519 | VA50: 0.01885827183 | VB50: 0.01891604551 | VC50: 0.01864253397 | VD50: 0.01869015749 | VE50: 0.01856932887 | VF50: 0.01878443659 | VG50: 0.0187282203 | VH50: 0.01866273865 | VI50: 0.01880599515 | VJ50: 0.0187231979 | VK50: 0.01877546153 | VL50: 0.01870484961 | VM50: 0.01864402625 | VN50: 0.0187369742 | VO50: 0.01880229416 | VP50: 0.01905123937 | VQ50: 0.01898719022 | VR50: 0.01869245239 | VS50: 0.01882016977 | VT50: 0.01874799829 | VU50: 0.01871496089 | VV50: 0.01890057127 | VW50: 0.01871376615 | VX50: 0.01874140741 | VY50: 0.01844040059 | VZ50: 0.01861454466 | WA50: 0.01860006004 | WB50: 0.01890132882 | WC50: 0.01933123087 | WD50: 0.0190564439 | WE50: 0.01885573458 | WF50: 0.01888819372 | WG50: 0.01904977096 | WH50: 0.01962848438 | WI50: 0.01946965729 | WJ50: 0.01945281279 | WK50: 0.01946539077 | WL50: 0.01912198425 | WM50: 0.01961204221 | WN50: 0.01938770313 | WO50: 0.01963341325 | WP50: 0.01943765799 | WQ50: 0.01965909302 | WR50: 0.01952665484 | WS50: 0.01960550946 | WT50: 0.01913936099 | WU50: 0.01969948565 | WV50: 0.01952895977 | WW50: 0.01954654631 | WX50: 0.0195005272 | WY50: 0.01955235317 | WZ50: 0.01942029343 | XA50: 0.01946357989 | XB50: 0.01952508876 | XC50: 0.01912781208 | XD50: 0.01930961644 | XE50: 0.01921558863 | XF50: 0.01909471179 | XG50: 0.01899448077 | XH50: 0.01921517635 | XI50: 0.01925612285 | XJ50: 0.01944433918 | XK50: 0.0193778906 | XL50: 0.01947285671 | XM50: 0.01932819447 | XN50: 0.0193728503 | XO50: 0.01929759194 | XP50: 0.01933829349 | XQ50: 0.01959775006 | XR50: 0.01934163868 | XS50: 0.01930518815 | XT50: 0.01951723854 | XU50: 0.01965539594 | XV50: 0.01956385389 | XW50: 0.01938326764 | XX50: 0.01936329548 | XY50: 0.0194774576 | XZ50: 0.01943837704 | YA50: 0.01978513327 | YB50: 0.01971842415 | YC50: 0.01946000391 | YD50: 0.01955428807 | YE50: 0.01951983195 | YF50: 0.01939297608 | YG50: 0.01920011121 | YH50: 0.01903016932 | YI50: 0.01918322657 | YJ50: 0.01934488182 | YK50: 0.01927039297 | YL50: 0.01902039382 | YM50: 0.01869717063 | YN50: 0.01899415106 | YO50: 0.01897704146 | YP50: 0.01891485333 | YQ50: 0.01907624835 | YR50: 0.01930785575 | YS50: 0.01940372917 | YT50: 0.01906197082 | YU50: 0.01903521398 | YV50: 0.01913202457 | YW50: 0.01910351195 | YX50: 0.01889441585 | YY50: 0.01891275591 | YZ50: 0.01895253915 | ZA50: 0.01885656263 | ZB50: 0.01901322012 | ZC50: 0.0187861935 | ZD50: 0.01849744231 | ZE50: 0.01862834191 | ZF50: 0.01853146313 | ZG50: 0.01858538371 | ZH50: 0.01872875946 | ZI50: 0.01866965141 | ZJ50: 0.01849657977 | ZK50: 0.01858015994 | ZL50: 0.01870927074 | ZM50: 0.01862217805 | ZN50: 0.01869620125 | ZO50: 0.01873832566 | ZP50: 0.01874798909 | ZQ50: 0.01904822909 | ZR50: 0.01880592845 | ZS50: 0.0189163579 | ZT50: 0.01915506307 | ZU50: 0.01927436073 | ZV50: 0.01981141184 | ZW50: 0.01967648405 | ZX50: 0.01973993621 | ZY50: 0.01983780116 | ZZ50: 0.01976930272 | AAA50: 0.01996884728 | AAB50: 0.01976416951 | AAC50: 0.01948676491 | AAD50: 0.01953915824 | AAE50: 0.01977503816 | AAF50: 0.019684292 | AAG50: 0.019404172 | AAH50: 0.01967249619 | AAI50: 0.01953648309 | AAJ50: 0.01958389082 | AAK50: 0.0191888683 | AAL50: 0.01919450105 | AAM50: 0.01931511165 | AAN50: 0.01942314849 | AAO50: 0.01922774325 | AAP50: 0.01918439681 | AAQ50: 0.01912431303 | AAR50: 0.01942873542 | AAS50: 0.01939678546 | AAT50: 0.01919087023 | AAU50: 0.01922580813 | AAV50: 0.01939312374 | AAW50: 0.01936045123 | AAX50: 0.01932994365 | AAY50: 0.01939007349 | AAZ50: 0.01916029244 | ABA50: 0.01909905331 | ABB50: 0.01920637341 | ABC50: 0.01904012958

Sheet Percentile Plot

Sheet Distribution Plot
A2: R - Value | B2: 0 | C2: 0.005 | D2: 0.01 | E2: 0.015 | F2: 0.02 | G2: 0.025 | H2: 0.03 | I2: 0.035 | J2: 0.04 | K2: 0.045 | L2: 0.05 | M2: 0.055 | N2: 0.06 | O2: 0.065 | P2: 0.07 | Q2: 0.075 | R2: 0.08 | S2: 0.085 | T2: 0.09 | U2: 0.095 | V2: 0.1 | W2: 0.105 | X2: 0.11 | Y2: 0.115 | Z2: 0.12 | AA2: 0.125 | AB2: 0.13 | AC2: 0.135 | AD2: 0.14 | AE2: 0.145 | AF2: 0.15 | AG2: 0.155 | AH2: 0.16 | AI2: 0.165 | AJ2: 0.17 | AK2: 0.175 | AL2: 0.18 | AM2: 0.185 | AN2: 0.19 | AO2: 0.195 | AP2: 0.2
A3: History | B3: 0 | C3: 0 | D3: 0 | E3: 0 | F3: 0.001367989056 | G3: 0.03283173735 | H3: 0.05882352941 | I3: 0.04377564979 | J3: 0.1299589603 | K3: 0.0779753762 | L3: 0.07523939808 | M3: 0.05471956224 | N3: 0.07934336525 | O3: 0.06292749658 | P3: 0.0560875513 | Q3: 0.06566347469 | R3: 0.06703146375 | S3: 0.04103967168 | T3: 0.04377564979 | U3: 0.00683994528 | V3: 0.00683994528 | W3: 0.01641586867 | X3: 0.01094391245 | Y3: 0.0123119015 | Z3: 0.01504787962 | AA3: 0.01094391245 | AB3: 0.005471956224 | AC3: 0.01094391245 | AD3: 0.00683994528 | AE3: 0.004103967168 | AF3: 0.002735978112 | AG3: 0 | AH3: 0 | AI3: 0 | AJ3: 0 | AK3: 0 | AL3: 0 | AM3: 0 | AN3: 0 | AO3: 0 | AP3: 0
A4: Average - Frequency | B4: 0 | C4: 0 | D4: 0.0001470588235 | E4: 0.001506976744 | F4: 0.01600465116 | G4: 0.05706032832 | H4: 0.06483488372 | I4: 0.06667838577 | J4: 0.06447824897 | K4: 0.07140793434 | L4: 0.0747622435 | M4: 0.07349015048 | N4: 0.07051942544 | O4: 0.06459521204 | P4: 0.0576246238 | Q4: 0.05011559508 | R4: 0.04329658003 | S4: 0.03711819425 | T4: 0.03134760602 | U4: 0.02646443228 | V4: 0.02213050616 | W4: 0.01854897401 | X4: 0.0154619699 | Y4: 0.01269206566 | Z4: 0.01025649795 | AA4: 0.008441586867 | AB4: 0.006850478796 | AC4: 0.005610533516 | AD4: 0.004667305062 | AE4: 0.003920930233 | AF4: 0.003219835841 | AG4: 0.002655540356 | AH4: 0.002255677155 | AI4: 0.001860738714 | AJ4: 0.001553898769 | AK4: 0.001341039672 | AL4: 0.001116005472 | AM4: 0.0009194254446 | AN4: 0.0007807113543 | AO4: 0.0006415868673 | AP4: 0.003622161423
A5: Std Dev | B5: 0 | C5: 0 | D5: 0.003481886557 | E5: 0.01072856504 | F5: 0.03059332627 | G5: 0.05648933593 | H5: 0.05026358588 | I5: 0.05077563128 | J5: 0.0516509545 | K5: 0.05103399224 | L5: 0.04920372225 | M5: 0.04564331979 | N5: 0.04266831615 | O5: 0.03972901879 | P5: 0.03665447281 | Q5: 0.03317402823 | R5: 0.03058198693 | S5: 0.02814628771 | T5: 0.02581041518 | U5: 0.02382261445 | V5: 0.02153554264 | W5: 0.01981415313 | X5: 0.01785887957 | Y5: 0.01587039896 | Z5: 0.01396791144 | AA5: 0.01245711802 | AB5: 0.01088914483 | AC5: 0.00984971484 | AD5: 0.008898074353 | AE5: 0.008206303709 | AF5: 0.007184664498 | AG5: 0.006452058068 | AH5: 0.00584719375 | AI5: 0.0052162655 | AJ5: 0.004732378401 | AK5: 0.004405585745 | AL5: 0.003893670403 | AM5: 0.003427838175 | AN5: 0.003145661464 | AO5: 0.002789570532 | AP5: 0.01931330976
A7: ln R - Value | B7: -5.025 | C7: -4.95 | D7: -4.875 | E7: -4.8 | F7: -4.725 | G7: -4.65 | H7: -4.575 | I7: -4.5 | J7: -4.425 | K7: -4.35 | L7: -4.275 | M7: -4.2 | N7: -4.125 | O7: -4.05 | P7: -3.975 | Q7: -3.9 | R7: -3.825 | S7: -3.75 | T7: -3.675 | U7: -3.6 | V7: -3.525 | W7: -3.45 | X7: -3.375 | Y7: -3.3 | Z7: -3.225 | AA7: -3.15 | AB7: -3.075 | AC7: -3 | AD7: -2.925 | AE7: -2.85 | AF7: -2.775 | AG7: -2.7 | AH7: -2.625 | AI7: -2.55 | AJ7: -2.475 | AK7: -2.4 | AL7: -2.325 | AM7: -2.25 | AN7: -2.175 | AO7: -2.1 | AP7: -2.025 | AQ7: -1.95 | AR7: -1.875 | AS7: -1.8 | AT7: -1.725 | AU7: -1.65 | AV7: -1.575 | AW7: -1.5 | AX7: -1.425 | AY7: -1.35 | AZ7: -1.275 | BA7: -1.2
A8: History | B8: 0 | C8: 0 | D8: 0 | E8: 0 | F8: 0 | G8: 0 | H8: 0 | I8: 0 | J8: 0 | K8: 0 | L8: 0 | M8: 0 | N8: 0 | O8: 0 | P8: 0 | Q8: 0 | R8: 0.001367989056 | S8: 0.004103967168 | T8: 0.01504787962 | U8: 0.02462380301 | V8: 0.02599179207 | W8: 0.02735978112 | X8: 0.02872777018 | Y8: 0.02325581395 | Z8: 0.0683994528 | AA8: 0.0779753762 | AB8: 0.05471956224 | AC8: 0.05745554036 | AD8: 0.04787961696 | AE8: 0.0560875513 | AF8: 0.07250341997 | AG8: 0.05745554036 | AH8: 0.05745554036 | AI8: 0.08071135431 | AJ8: 0.06429548564 | AK8: 0.04787961696 | AL8: 0.008207934337 | AM8: 0.02325581395 | AN8: 0.02051983584 | AO8: 0.02462380301 | AP8: 0.01504787962 | AQ8: 0.0123119015 | AR8: 0.002735978112 | AS8: 0 | AT8: 0 | AU8: 0 | AV8: 0 | AW8: 0 | AX8: 0 | AY8: 0 | AZ8: 0 | BA8: 0
A9: Average - Frequency | B9: 0 | C9: 0 | D9: 2.325581395e-06 | E9: 3.41997264e-06 | F9: 2.325581395e-06 | G9: 3.283173735e-06 | H9: 1.46374829e-05 | I9: 3.461012312e-05 | J9: 7.783857729e-05 | K9: 0.000120246238 | L9: 0.0001794801642 | M9: 0.0002813953488 | N9: 0.0004879616963 | O9: 0.0009596443228 | P9: 0.00212380301 | Q9: 0.00475745554 | R9: 0.009754309166 | S9: 0.01660082079 | T9: 0.02357688098 | U9: 0.02722352941 | V9: 0.02864459644 | W9: 0.03064829001 | X9: 0.03384500684 | Y9: 0.0367504788 | Z9: 0.03815335157 | AA9: 0.04409644323 | AB9: 0.05051080711 | AC9: 0.05592941176 | AD9: 0.05964035568 | AE9: 0.06248344733 | AF9: 0.0635753762 | AG9: 0.06209466484 | AH9: 0.05859357045 | AI9: 0.05366716826 | AJ9: 0.04798098495 | AK9: 0.04161833105 | AL9: 0.03509138167 | AM9: 0.02891709986 | AN9: 0.02285595075 | AO9: 0.01713201094 | AP9: 0.01253160055 | AQ9: 0.009219699042 | AR9: 0.006540218878 | AS9: 0.00458878249 | AT9: 0.003196990424 | AU9: 0.002087688098 | AV9: 0.001273871409 | AW9: 0.0007867305062 | AX9: 0.0005060191518 | AY9: 0.0003480164159 | AZ9: 0.0002013679891 | BA9: 0.0002863201094
A10: Std Dev | B10: 0 | C10: 0 | D10: 0.0002325465113 | E10: 0.0003419801637 | F10: 0.0002325465113 | G10: 0.0001924651218 | H10: 0.0005147448708 | I10: 0.001057571371 | J10: 0.001720439943 | K10: 0.001989647598 | L10: 0.002400026199 | M10: 0.002860892462 | N10: 0.00376628657 | O10: 0.005136648215 | P10: 0.007390692229 | Q10: 0.01108220614 | R10: 0.01630139038 | S10: 0.02155518963 | T10: 0.02535756618 | U10: 0.02546840302 | V10: 0.02462072877 | W10: 0.02591318536 | X10: 0.02777139295 | Y10: 0.03037008006 | Z10: 0.03247595134 | AA10: 0.034569441 | AB10: 0.03667470057 | AC10: 0.03797817112 | AD10: 0.03822411539 | AE10: 0.03857222742 | AF10: 0.03872527677 | AG10: 0.03883714335 | AH10: 0.03768198407 | AI10: 0.03640031173 | AJ10: 0.03528222817 | AK10: 0.03392774672 | AL10: 0.03197249309 | AM10: 0.03001017696 | AN10: 0.02702871035 | AO10: 0.02331926035 | AP10: 0.01978635308 | AQ10: 0.017464361 | AR10: 0.01460057066 | AS10: 0.01225087479 | AT10: 0.01018238199 | AU10: 0.00809057905 | AV10: 0.006134918709 | AW10: 0.004870187057 | AX10: 0.003972041441 | AY10: 0.003360990884 | AZ10: 0.00244802479 | BA10: 0.005058877078
A12: dln R - Value | B12: -0.15 | C12: -0.145 | D12: -0.14 | E12: -0.135 | F12: -0.13 | G12: -0.125 | H12: -0.12 | I12: -0.115 | J12: -0.11 | K12: -0.105 | L12: -0.1 | M12: -0.095 | N12: -0.09 | O12: -0.085 | P12: -0.08 | Q12: -0.075 | R12: -0.07 | S12: -0.065 | T12: -0.06 | U12: -0.055 | V12: -0.05 | W12: -0.045 | X12: -0.04 | Y12: -0.035 | Z12: -0.03 | AA12: -0.025 | AB12: -0.02 | AC12: -0.015 | AD12: -0.01 | AE12: -0.005 | AF12: 0 | AG12: 0.005 | AH12: 0.01 | AI12: 0.015 | AJ12: 0.02 | AK12: 0.025 | AL12: 0.03 | AM12: 0.035 | AN12: 0.04 | AO12: 0.045 | AP12: 0.05 | AQ12: 0.055 | AR12: 0.06 | AS12: 0.065 | AT12: 0.07 | AU12: 0.075 | AV12: 0.08 | AW12: 0.085 | AX12: 0.09 | AY12: 0.095 | AZ12: 0.1 | BA12: 0.105 | BB12: 0.11 | BC12: 0.115 | BD12: 0.12 | BE12: 0.125 | BF12: 0.13 | BG12: 0.135 | BH12: 0.14 | BI12: 0.145 | BJ12: 0.15
A13: History | B13: 0.002735978112 | C13: 0 | D13: 0 | E13: 0.001367989056 | F13: 0 | G13: 0 | H13: 0 | I13: 0.001367989056 | J13: 0.002735978112 | K13: 0.001367989056 | L13: 0 | M13: 0.001367989056 | N13: 0.004103967168 | O13: 0.002735978112 | P13: 0 | Q13: 0.002735978112 | R13: 0.001367989056 | S13: 0.00683994528 | T13: 0.009575923393 | U13: 0.009575923393 | V13: 0.01367989056 | W13: 0.01778385773 | X13: 0.02872777018 | Y13: 0.03830369357 | Z13: 0.04377564979 | AA13: 0.03967168263 | AB13: 0.03967168263 | AC13: 0.05061559508 | AD13: 0.06566347469 | AE13: 0.05745554036 | AF13: 0.08891928865 | AG13: 0.06429548564 | AH13: 0.07387140903 | AI13: 0.04924760602 | AJ13: 0.05471956224 | AK13: 0.04787961696 | AL13: 0.03283173735 | AM13: 0.03556771546 | AN13: 0.02599179207 | AO13: 0.0123119015 | AP13: 0.01094391245 | AQ13: 0.01504787962 | AR13: 0.008207934337 | AS13: 0.005471956224 | AT13: 0.00683994528 | AU13: 0.002735978112 | AV13: 0.00683994528 | AW13: 0.001367989056 | AX13: 0.004103967168 | AY13: 0.002735978112 | AZ13: 0.001367989056 | BA13: 0 | BB13: 0 | BC13: 0.001367989056 | BD13: 0 | BE13: 0.001367989056 | BF13: 0.001367989056 | BG13: 0.001367989056 | BH13: 0 | BI13: 0 | BJ13: 0
A14: Average - Frequency | B14: 0.001515731874 | C14: 0.0002926128591 | D14: 0.0003615595075 | E14: 0.000439124487 | F14: 0.0005169630643 | G14: 0.0006383036936 | H14: 0.0007800273598 | I14: 0.0009518467852 | J14: 0.001106429549 | K14: 0.001389740082 | L14: 0.001707113543 | M14: 0.002097264022 | N14: 0.002607387141 | O14: 0.003165389877 | P14: 0.003910259918 | Q14: 0.004765526676 | R14: 0.005759644323 | S14: 0.00721874145 | T14: 0.008962106703 | U14: 0.01090779754 | V14: 0.01349384405 | W14: 0.01665882353 | X14: 0.02076155951 | Y14: 0.02605937073 | Z14: 0.03193105335 | AA14: 0.03970943912 | AB14: 0.04734199726 | AC14: 0.05593912449 | AD14: 0.0667253078 | AE14: 0.07300834473 | AF14: 0.07510150479 | AG14: 0.07238262654 | AH14: 0.06909822161 | AI14: 0.06124760602 | AJ14: 0.05091860465 | AK14: 0.04192626539 | AL14: 0.03411135431 | AM14: 0.02765567715 | AN14: 0.02226908345 | AO14: 0.01777606019 | AP14: 0.01438467852 | AQ14: 0.01164692202 | AR14: 0.009365937073 | AS14: 0.00753871409 | AT14: 0.006152804378 | AU14: 0.005017783858 | AV14: 0.004072640219 | AW14: 0.003355266758 | AX14: 0.002704924761 | AY14: 0.002212175103 | AZ14: 0.001803009576 | BA14: 0.001470314637 | BB14: 0.001207660739 | BC14: 0.001004651163 | BD14: 0.0008300957592 | BE14: 0.0006857729138 | BF14: 0.0005778385773 | BG14: 0.0004648426813 | BH14: 0.000381121751 | BI14: 0.0003183310534 | BJ14: 0.001595075239
A15: Std Dev | B15: 0.001401595417 | C15: 0.0006256165439 | D15: 0.0006970646057 | E15: 0.0007740437004 | F15: 0.000830417348 | G15: 0.0009361328529 | H15: 0.001034684525 | I15: 0.001127958501 | J15: 0.001209756091 | K15: 0.001356757718 | L15: 0.001504940665 | M15: 0.001685407148 | N15: 0.001866572818 | O15: 0.002066508914 | P15: 0.002255709606 | Q15: 0.002496095015 | R15: 0.002759974762 | S15: 0.003075398341 | T15: 0.003455673662 | U15: 0.003855861779 | V15: 0.004241362652 | W15: 0.004741233427 | X15: 0.005440689933 | Y15: 0.005986004932 | Z15: 0.006631588434 | AA15: 0.007466794333 | AB15: 0.007930556083 | AC15: 0.008830083542 | AD15: 0.0100334806 | AE15: 0.01020256337 | AF15: 0.009996344439 | AG15: 0.0104978613 | AH15: 0.01041997213 | AI15: 0.009435874061 | AJ15: 0.008163449648 | AK15: 0.007416300859 | AL15: 0.006659848835 | AM15: 0.006033547378 | AN15: 0.005379559575 | AO15: 0.004864402027 | AP15: 0.004457539171 | AQ15: 0.003968113192 | AR15: 0.00357878533 | AS15: 0.003180709398 | AT15: 0.002886357941 | AU15: 0.002586684635 | AV15: 0.002376593332 | AW15: 0.002128690627 | AX15: 0.001891481574 | AY15: 0.00171325957 | AZ15: 0.00155510695 | BA15: 0.001411884638 | BB15: 0.001273673599 | BC15: 0.001157594118 | BD15: 0.001044693896 | BE15: 0.000960712437 | BF15: 0.0008861129866 | BG15: 0.0007879141478 | BH15: 0.000715266052 | BI15: 0.0006551378144 | BJ15: 0.001435700441
B37: =FREQUENCY('Historical Data'!B2:B724,'Distribution Plot'!C2:BY2) -> 0

Sheet Worst Scenario

Sheet Monthly Stats

Sheet Scenario Stats

Sheet Frequency

Sheet Random Scenario

Sheet DiGamma
A18: Sample
A19: LBound | B19: -0.65
A20: UBound | B20: 0.59
A21: Std | B21: 0.04399976421
A22: Kurt | B22: 15.14989771
A23: 6th | B23: 1292.693483

Sheet Historical Data
A1: DATE | B1: R | C1: VALUE% | D1: ln R | E1: Dln R
A2: 1953-04-19 | B2: =C2/100 -> 0.0308 | C2: 3.08 | D2: =LN(B2) -> -3.480240589 | E2: 0
A3: 1953-05-19 | B3: 0.0318 | C3: 3.18 | D3: =LN(B3) -> -3.448288989 | E3: =D3-D2 -> 0.03195159981
A4: 1953-06-19 | B4: 0.0321 | C4: 3.21 | D4: -3.438899249 | E4: =D4-D3 -> 0.00938974035
A5: 1953-07-19 | B5: 0.0312 | C5: 3.12 | D5: -3.467337184 | E5: -0.02843793532
A6: 1953-08-19 | B6: 0.031 | C6: 3.1 | D6: -3.473768074 | E6: -0.00643089033
A7: 1953-09-19 | B7: 0.0307 | C7: 3.07 | D7: -3.483492624 | E7: -0.009724549892
A8: 1953-10-19 | B8: 0.0295 | C8: 2.95 | D8: -3.523365016 | E8: -0.03987239125
A9: 1953-11-19 | B9: 0.0295 | C9: 2.95 | D9: -3.523365016 | E9: 0
A10: 1953-12-19 | B10: 0.0289 | C10: 2.89 | D10: -3.543913684 | E10: -0.02054866823
A11: 1954-01-19 | B11: 0.028 | C11: 2.8 | D11: -3.575550769 | E11: -0.03163708494
A12: 1954-02-19 | B12: 0.0272 | C12: 2.72 | D12: -3.604538306 | E12: -0.02898753687
A13: 1954-03-19 | B13: 0.0261 | C13: 2.61 | D13: -3.645819965 | E13: -0.04128165897
A14: 1954-04-19 | B14: 0.026 | C14: 2.6 | D14: -3.649658741 | E14: -0.003838776307
A15: 1954-05-19 | B15: 0.0266 | C15: 2.66 | D15: -3.626844063 | E15: 0.02281467777
A16: 1954-06-19 | B16: 0.0264 | C16: 2.64 | D16: -3.634391269 | E16: -0.007547205635
A17: 1954-07-19 | B17: 0.0257 | C17: 2.57 | D17: -3.661264287 | E17: -0.02687301825
A18: 1954-08-19 | B18: 0.0258 | C18: 2.58 | D18: -3.657380787 | E18: 0.003883500026
A19: 1954-09-19 | B19: 0.026 | C19: 2.6 | D19: -3.649658741 | E19: 0.007722046094
A20: 1954-10-19 | B20: 0.0261 | C20: 2.61 | D20: -3.645819965 | E20: 0.003838776307
A21: 1954-11-19 | B21: 0.0265 | C21: 2.65 | D21: -3.630610546 | E21: 0.01520941866
A22: 1954-12-19 | B22: 0.0267 | C22: 2.67 | D22: -3.623091714 | E22: 0.007518832414
A23: 1955-01-19 | B23: 0.0275 | C23: 2.75 | D23: -3.593569274 | E23: 0.02952243927
A24: 1955-02-19 | B24: 0.0283 | C24: 2.83 | D24: -3.564893474 | E24: 0.02867579998
A25: 1955-03-19 | B25: 0.0284 | C25: 2.84 | D25: -3.561366134 | E25: 0.003527340518
A26: 1955-04-19 | B26: 0.0285 | C26: 2.85 | D26: -3.557851192 | E26: 0.003514942107
A27: 1955-05-19 | B27: 0.0287 | C27: 2.87 | D27: -3.550858156 | E27: 0.006993035491
A28: 1955-06-19 | B28: 0.0286 | C28: 2.86 | D28: -3.554348561 | E28: -0.00349040494
A29: 1955-07-19 | B29: 0.0294 | C29: 2.94 | D29: -3.526760605 | E29: 0.02758795652
A30: 1955-08-19 | B30: 0.0301 | C30: 3.01 | D30: -3.503230107 | E30: 0.02353049741
A31: 1955-09-19 | B31: 0.03 | C31: 3 | D31: -3.506557897 | E31: -0.003327790093
A32: 1955-10-19 | B32: 0.0293 | C32: 2.93 | D32: -3.530167763 | E32: -0.02360986564
A33: 1955-11-19 | B33: 0.0293 | C33: 2.93 | D33: -3.530167763 | E33: 0
A34: 1955-12-19 | B34: 0.0298 | C34: 2.98 | D34: -3.513246885 | E34: 0.01692087749
A35: 1956-01-19 | B35: 0.0294 | C35: 2.94 | D35: -3.526760605 | E35: -0.01351371917
A36: 1956-02-19 | B36: 0.0291 | C36: 2.91 | D36: -3.537017105 | E36: -0.01025650017
A37: 1956-03-19 | B37: 0.0299 | C37: 2.99 | D37: -3.509896799 | E37: 0.02712030622
A38: 1956-04-19 | B38: 0.0314 | C38: 3.14 | D38: -3.460947386 | E38: 0.04894941252
A39: 1956-05-19 | B39: 0.0306 | C39: 3.06 | D39: -3.48675527 | E39: -0.02580788396
A40: 1956-06-19 | B40: 0.03 | C40: 3 | D40: -3.506557897 | E40: -0.0198026273
A41: 1956-07-19 | B41: 0.0308 | C41: 3.08 | D41: -3.480240589 | E41: 0.02631730832
A42: 1956-08-19 | B42: 0.0322 | C42: 3.22 | D42: -3.435788826 | E42: 0.04445176257
A43: 1956-09-19 | B43: 0.0328 | C43: 3.28 | D43: -3.417326764 | E43: 0.01846206284
A44: 1956-10-19 | B44: 0.0326 | C44: 3.26 | D44: -3.423442991 | E44: -0.006116227017
A45: 1956-11-19 | B45: 0.0337 | C45: 3.37 | D45: -3.390257442 | E45: 0.03318554899
A46: 1956-12-19 | B46: 0.0345 | C46: 3.45 | D46: -3.366795955 | E46: 0.02346148668
A47: 1957-01-19 | B47: 0.0341 | C47: 3.41 | D47: -3.378457895 | E47: -0.01166193975
A48: 1957-02-19 | B48: 0.033 | C48: 3.3 | D48: -3.411247718 | E48: -0.03278982282
A49: 1957-03-19 | B49: 0.0332 | C49: 3.32 | D49: -3.405205403 | E49: 0.006042314456
A50: 1957-04-19 | B50: 0.034 | C50: 3.4 | D50: -3.381394754 | E50: 0.02381064869
A51: 1957-05-19 | B51: 0.0349 | C51: 3.49 | D51: -3.35526845 | E51: 0.02612630459
A52: 1957-06-19 | B52: 0.0365 | C52: 3.65 | D52: -3.310443018 | E52: 0.04482543138
A53: 1957-07-19 | B53: 0.0372 | C53: 3.72 | D53: -3.291446518 | E53: 0.01899650069
A54: 1957-08-19 | B54: 0.0375 | C54: 3.75 | D54: -3.283414346 | E54: 0.008032171697
A55: 1957-09-19 | B55: 0.0373 | C55: 3.73 | D55: -3.288761952 | E55: -0.005347606327
A56: 1957-10-19 | B56: 0.0376 | C56: 3.76 | D56: -3.280751229 | E56: 0.008010723746
A57: 1957-11-19 | B57: 0.0361 | C57: 3.61 | D57: -3.321462414 | E57: -0.04071118506
A58: 1957-12-19 | B58: 0.0338 | C58: 3.38 | D58: -3.387294476 | E58: -0.06583206285
A59: 1958-01-19 | B59: 0.0327 | C59: 3.27 | D59: -3.420380201 | E59: -0.03308572459
A60: 1958-02-19 | B60: 0.0331 | C60: 3.31 | D60: -3.408221997 | E60: 0.01215820448
A61: 1958-03-19 | B61: 0.0329 | C61: 3.29 | D61: -3.414282621 | E61: -0.006060624612
A62: 1958-04-19 | B62: 0.0317 | C62: 3.17 | D62: -3.451438598 | E62: -0.03715597689
A63: 1958-05-19 | B63: 0.0317 | C63: 3.17 | D63: -3.451438598 | E63: 0
A64: 1958-06-19 | B64: 0.0323 | C64: 3.23 | D64: -3.432688049 | E64: 0.01875054935
A65: 1958-07-19 | B65: 0.0339 | C65: 3.39 | D65: -3.384340265 | E65: 0.04834778416
A66: 1958-08-19 | B66: =C66/100 -> 0.0365 | C66: 3.65 | D66: -3.310443018 | E66: 0.0738972462
A67: 1958-09-19 | B67: 0.038 | C67: 3.8 | D67: =LN(B67) -> -3.270169119 | E67: 0.04027389914
A68: 1958-10-19 | B68: 0.0381 | C68: 3.81 | D68: -3.267540997 | E68: =D68-D67 -> 0.002628122406
A69: 1958-11-19 | B69: 0.0376 | C69: 3.76 | D69: -3.280751229 | E69: -0.01321023174
A70: 1958-12-19 | B70: 0.0386 | C70: 3.86 | D70: -3.254503003 | E70: 0.02624822607
A71: 1959-01-19 | B71: 0.0395 | C71: 3.95 | D71: -3.231454607 | E71: 0.02304839544
A72: 1959-02-19 | B72: 0.0396 | C72: 3.96 | D72: -3.228926161 | E72: 0.002528446353
A73: 1959-03-19 | B73: 0.0399 | C73: 3.99 | D73: -3.221378955 | E73: 0.007547205635
A74: 1959-04-19 | B74: 0.0406 | C74: 4.06 | D74: -3.203987212 | E74: 0.01739174271
A75: 1959-05-19 | B75: 0.0413 | C75: 4.13 | D75: -3.186892779 | E75: 0.01709443336
A76: 1959-06-19 | B76: 0.0414 | C76: 4.14 | D76: -3.184474398 | E76: 0.002418380864
A77: 1959-07-19 | B77: 0.0416 | C77: 4.16 | D77: -3.179655112 | E77: 0.004819286436
A78: 1959-08-19 | B78: 0.0415 | C78: 4.15 | D78: -3.182061852 | E78: -0.002406740031
A79: 1959-09-19 | B79: 0.0429 | C79: 4.29 | D79: -3.148883453 | E79: 0.0331783987
A80: 1959-10-19 | B80: 0.0419 | C80: 4.19 | D80: -3.172469452 | E80: -0.02358599901
A81: 1959-11-19 | B81: 0.042 | C81: 4.2 | D81: -3.170085661 | E81: 0.002383791355
A82: 1959-12-19 | B82: 0.0433 | C82: 4.33 | D82: -3.139602644 | E82: 0.03048301673
A83: 1960-01-19 | B83: 0.0442 | C83: 4.42 | D83: -3.11903049 | E83: 0.02057215408
A84: 1960-02-19 | B84: 0.0428 | C84: 4.28 | D84: -3.151217176 | E84: -0.0321866865
A85: 1960-03-19 | B85: 0.0414 | C85: 4.14 | D85: -3.184474398 | E85: -0.03325722176
A86: 1960-04-19 | B86: 0.0423 | C86: 4.23 | D86: -3.162968193 | E86: 0.02150620522
A87: 1960-05-19 | B87: 0.042 | C87: 4.2 | D87: -3.170085661 | E87: -0.007117467769
A88: 1960-06-19 | B88: 0.0404 | C88: 4.04 | D88: -3.208925494 | E88: -0.03883983332
A89: 1960-07-19 | B89: 0.0391 | C89: 3.91 | D89: -3.241632812 | E89: -0.03270731798
A90: 1960-08-19 | B90: 0.0384 | C90: 3.84 | D90: -3.259697819 | E90: -0.0180650074
A91: 1960-09-19 | B91: 0.0386 | C91: 3.86 | D91: -3.254503003 | E91: 0.005194816877
A92: 1960-10-19 | B92: 0.0392 | C92: 3.92 | D92: -3.239078532 | E92: 0.01542447033
A93: 1960-11-19 | B93: 0.0396 | C93: 3.96 | D93: -3.228926161 | E93: 0.01015237146
A94: 1960-12-19 | B94: 0.0391 | C94: 3.91 | D94: -3.241632812 | E94: -0.01270665127
A95: 1961-01-19 | B95: 0.039 | C95: 3.9 | D95: -3.244193633 | E95: -0.002560820862
A96: 1961-02-19 | B96: 0.0384 | C96: 3.84 | D96: -3.259697819 | E96: -0.01550418654
A97: 1961-03-19 | B97: 0.0381 | C97: 3.81 | D97: -3.267540997 | E97: -0.007843177461
A98: 1961-04-19 | B98: 0.0381 | C98: 3.81 | D98: -3.267540997 | E98: 0
A99: 1961-05-19 | B99: 0.0374 | C99: 3.74 | D99: -3.286084575 | E99: -0.01854357771
A100: 1961-06-19 | B100: 0.0389 | C100: 3.89 | D100: -3.246761028 | E100: 0.0393235462
A101: 1961-07-19 | B101: 0.0393 | C101: 3.93 | D101: -3.23653076 | E101: 0.01023026825
A102: 1961-08-19 | B102: 0.0404 | C102: 4.04 | D102: -3.208925494 | E102: 0.02760526609
A103: 1961-09-19 | B103: 0.0404 | C103: 4.04 | D103: -3.208925494 | E103: 0
A104: 1961-10-19 | B104: 0.0401 | C104: 4.01 | D104: -3.216378945 | E104: -0.007453450655
A105: 1961-11-19 | B105: 0.04 | C105: 4 | D105: -3.218875825 | E105: -0.002496880199
A106: 1961-12-19 | B106: 0.0407 | C106: 4.07 | D106: -3.201527187 | E106: 0.01734863833
A107: 1962-01-19 | B107: 0.041 | C107: 4.1 | D107: -3.194183212 | E107: 0.007343974256
A108: 1962-02-19 | B108: 0.0412 | C108: 4.12 | D108: -3.189317023 | E108: 0.004866189651
A109: 1962-03-19 | B109: 0.0404 | C109: 4.04 | D109: -3.208925494 | E109: -0.01960847139
A110: 1962-04-19 | B110: 0.0393 | C110: 3.93 | D110: -3.23653076 | E110: -0.02760526609
A111: 1962-05-19 | B111: 0.0392 | C111: 3.92 | D111: -3.239078532 | E111: -0.002547772079
A112: 1962-06-19 | B112: 0.0396 | C112: 3.96 | D112: -3.228926161 | E112: 0.01015237146
A113: 1962-07-19 | B113: 0.0405 | C113: 4.05 | D113: -3.206453305 | E113: 0.02247285585
A114: 1962-08-19 | B114: 0.0401 | C114: 4.01 | D114: -3.216378945 | E114: -0.0099256398
A115: 1962-09-19 | B115: 0.04 | C115: 4 | D115: -3.218875825 | E115: -0.002496880199
A116: 1962-10-19 | B116: 0.0394 | C116: 3.94 | D116: -3.233989463 | E116: -0.01511363781
A117: 1962-11-19 | B117: 0.0393 | C117: 3.93 | D117: -3.23653076 | E117: -0.002541297429
A118: 1962-12-19 | B118: 0.0392 | C118: 3.92 | D118: -3.239078532 | E118: -0.002547772079
A119: 1963-01-19 | B119: 0.0393 | C119: 3.93 | D119: -3.23653076 | E119: 0.002547772079
A120: 1963-02-19 | B120: 0.0397 | C120: 3.97 | D120: -3.226404091 | E120: 0.01012666882
A121: 1963-03-19 | B121: 0.0398 | C121: 3.98 | D121: -3.223888367 | E121: 0.002515724597
A122: 1963-04-19 | B122: 0.0403 | C122: 4.03 | D122: -3.21140381 | E122: 0.01248455666
A123: 1963-05-19 | B123: 0.0402 | C123: 4.02 | D123: -3.213888283 | E123: -0.002484473328
A124: 1963-06-19 | B124: 0.0402 | C124: 4.02 | D124: -3.213888283 | E124: 0
A125: 1963-07-19 | B125: 0.0406 | C125: 4.06 | D125: -3.203987212 | E125: 0.009901070983
A126: 1963-08-19 | B126: 0.0403 | C126: 4.03 | D126: -3.21140381 | E126: -0.007416597655
A127: 1963-09-19 | B127: 0.0409 | C127: 4.09 | D127: -3.196625216 | E127: 0.0147785941
A128: 1963-10-19 | B128: 0.0412 | C128: 4.12 | D128: -3.189317023 | E128: 0.007308193307
A129: 1963-11-19 | B129: 0.0416 | C129: 4.16 | D129: -3.179655112 | E129: 0.009661910912
A130: 1963-12-19 | B130: =C130/100 -> 0.0419 | C130: 4.19 | D130: -3.172469452 | E130: 0.007185659661
A131: 1964-01-19 | B131: 0.0419 | C131: 4.19 | D131: =LN(B131) -> -3.172469452 | E131: 0
A132: 1964-02-19 | B132: 0.0417 | C132: 4.17 | D132: -3.17725415 | E132: =D132-D131 -> -0.004784698123
A133: 1964-03-19 | B133: 0.0422 | C133: 4.22 | D133: -3.165335058 | E133: 0.01191909224
A134: 1964-04-19 | B134: 0.0424 | C134: 4.24 | D134: -3.160606917 | E134: 0.004728141196
A135: 1964-05-19 | B135: 0.042 | C135: 4.2 | D135: -3.170085661 | E135: -0.009478743955
A136: 1964-06-19 | B136: 0.0417 | C136: 4.17 | D136: -3.17725415 | E136: -0.007168489479
A137: 1964-07-19 | B137: 0.0416 | C137: 4.16 | D137: -3.179655112 | E137: -0.002400961538
A138: 1964-08-19 | B138: 0.0418 | C138: 4.18 | D138: -3.174858939 | E138: 0.004796172263
A139: 1964-09-19 | B139: 0.042 | C139: 4.2 | D139: -3.170085661 | E139: 0.004773278753
A140: 1964-10-19 | B140: 0.042 | C140: 4.2 | D140: -3.170085661 | E140: 0
A141: 1964-11-19 | B141: 0.0417 | C141: 4.17 | D141: -3.17725415 | E141: -0.007168489479
A142: 1964-12-19 | B142: 0.0418 | C142: 4.18 | D142: -3.174858939 | E142: 0.002395210726
A143: 1965-01-19 | B143: 0.0419 | C143: 4.19 | D143: -3.172469452 | E143: 0.002389487397
A144: 1965-02-19 | B144: 0.0421 | C144: 4.21 | D144: -3.167707538 | E144: 0.00476191376
A145: 1965-03-19 | B145: 0.042 | C145: 4.2 | D145: -3.170085661 | E145: -0.002378122405
A146: 1965-04-19 | B146: 0.042 | C146: 4.2 | D146: -3.170085661 | E146: 0
A147: 1965-05-19 | B147: 0.0421 | C147: 4.21 | D147: -3.167707538 | E147: 0.002378122405
A148: 1965-06-19 | B148: 0.0421 | C148: 4.21 | D148: -3.167707538 | E148: 0
A149: 1965-07-19 | B149: 0.0421 | C149: 4.21 | D149: -3.167707538 | E149: 0
A150: 1965-08-19 | B150: 0.0425 | C150: 4.25 | D150: -3.158251203 | E150: 0.009456335242
A151: 1965-09-19 | B151: 0.043 | C151: 4.3 | D151: -3.146555163 | E151: 0.01169603976
A152: 1965-10-19 | B152: 0.0432 | C152: 4.32 | D152: -3.141914784 | E152: 0.004640379557
A153: 1965-11-19 | B153: 0.044 | C153: 4.4 | D153: -3.123565645 | E153: 0.01834913867
A154: 1965-12-19 | B154: 0.045 | C154: 4.5 | D154: -3.101092789 | E154: 0.02247285585
A155: 1966-01-19 | B155: 0.0452 | C155: 4.52 | D155: -3.096658192 | E155: 0.004434597068
A156: 1966-02-19 | B156: 0.0471 | C156: 4.71 | D156: -3.055482278 | E156: 0.04117591418
A157: 1966-03-19 | B157: 0.0472 | C157: 4.72 | D157: -3.053361386 | E157: 0.002120891569
A158: 1966-04-19 | B158: 0.0465 | C158: 4.65 | D158: -3.068302966 | E158: -0.01494158
A159: 1966-05-19 | B159: 0.0469 | C159: 4.69 | D159: -3.059737604 | E159: 0.008565362859
A160: 1966-06-19 | B160: 0.0473 | C160: 4.73 | D160: -3.051244983 | E160: 0.008492620046
A161: 1966-07-19 | B161: 0.0484 | C161: 4.84 | D161: -3.028255465 | E161: 0.02298951822
A162: 1966-08-19 | B162: 0.0495 | C162: 4.95 | D162: -3.005782609 | E162: 0.02247285585
A163: 1966-09-19 | B163: 0.0494 | C163: 4.94 | D163: -3.007804855 | E163: -0.002022245381
A164: 1966-10-19 | B164: 0.0483 | C164: 4.83 | D164: -3.030323718 | E164: -0.02251886354
A165: 1966-11-19 | B165: 0.0487 | C165: 4.87 | D165: -3.022076249 | E165: 0.00824746943
A166: 1966-12-19 | B166: 0.0476 | C166: 4.76 | D166: -3.044922518 | E166: -0.02284626885
A167: 1967-01-19 | B167: 0.0451 | C167: 4.51 | D167: -3.098873032 | E167: -0.05395051473
A168: 1967-02-19 | B168: 0.0461 | C168: 4.61 | D168: -3.076942329 | E168: 0.02193070349
A169: 1967-03-19 | B169: 0.0456 | C169: 4.56 | D169: -3.087847562 | E169: -0.01090523348
A170: 1967-04-19 | B170: 0.0464 | C170: 4.64 | D170: -3.07045582 | E170: 0.01739174271
A171: 1967-05-19 | B171: 0.049 | C171: 4.9 | D171: -3.015934981 | E171: 0.05452083888
A172: 1967-06-19 | B172: 0.0499 | C172: 4.99 | D172: -2.997734276 | E172: 0.01820070465
A173: 1967-07-19 | B173: 0.0501 | C173: 5.01 | D173: -2.993734271 | E173: 0.004000005333
A174: 1967-08-19 | B174: 0.0512 | C174: 5.12 | D174: -2.972015747 | E174: 0.02171852395
A175: 1967-09-19 | B175: 0.0516 | C175: 5.16 | D175: -2.964233606 | E175: 0.007782140442
A176: 1967-10-19 | B176: 0.0536 | C176: 5.36 | D176: -2.926206211 | E176: 0.03802739559
A177: 1967-11-19 | B177: 0.0566 | C177: 5.66 | D177: -2.871746294 | E177: 0.05445991713
A178: 1967-12-19 | B178: 0.0559 | C178: 5.59 | D178: -2.884190899 | E178: -0.01244460505
A179: 1968-01-19 | B179: 0.0539 | C179: 5.39 | D179: -2.920624801 | E179: -0.03643390225
A180: 1968-02-19 | B180: 0.0538 | C180: 5.38 | D180: -2.922481812 | E180: -0.001857010747
A181: 1968-03-19 | B181: 0.0559 | C181: 5.59 | D181: -2.884190899 | E181: 0.03829091299
A182: 1968-04-19 | B182: 0.0546 | C182: 5.46 | D182: -2.907721396 | E182: -0.02353049741
A183: 1968-05-19 | B183: 0.0555 | C183: 5.55 | D183: -2.891372258 | E183: 0.016349138
A184: 1968-06-19 | B184: 0.054 | C184: 5.4 | D184: -2.918771232 | E184: -0.02739897419
A185: 1968-07-19 | B185: 0.0529 | C185: 5.29 | D185: -2.93935194 | E185: -0.0205807077
A186: 1968-08-19 | B186: 0.0523 | C186: 5.23 | D186: -2.950758908 | E186: -0.01140696779
A187: 1968-09-19 | B187: 0.0528 | C187: 5.28 | D187: -2.941244088 | E187: 0.009514819641
A188: 1968-10-19 | B188: 0.0544 | C188: 5.44 | D188: -2.911391125 | E188: 0.02985296315
A189: 1968-11-19 | B189: 0.0556 | C189: 5.56 | D189: -2.889572078 | E189: 0.02181904739
A190: 1968-12-19 | B190: 0.0588 | C190: 5.88 | D190: -2.833613424 | E190: 0.05595865365
A191: 1969-01-19 | B191: 0.0599 | C191: 5.99 | D191: -2.815078774 | E191: 0.01853465022
A192: 1969-02-19 | B192: 0.0611 | C192: 6.11 | D192: -2.795243413 | E192: 0.01983536106
A193: 1969-03-19 | B193: 0.0622 | C193: 6.22 | D193: -2.777400279 | E193: 0.01784313357
A194: 1969-04-19 | B194: =C194/100 -> 0.0603 | C194: 6.03 | D194: -2.808423175 | E194: -0.03102289601
A195: 1969-05-19 | B195: 0.0611 | C195: 6.11 | D195: =LN(B195) -> -2.795243413 | E195: 0.01317976244
A196: 1969-06-19 | B196: 0.0628 | C196: 6.28 | D196: -2.767800206 | E196: =D196-D195 -> 0.0274432073
A197: 1969-07-19 | B197: 0.0627 | C197: 6.27 | D197: -2.769393831 | E197: -0.001593625835
A198: 1969-08-19 | B198: 0.0622 | C198: 6.22 | D198: -2.777400279 | E198: -0.008006447894
A199: 1969-09-19 | B199: 0.0655 | C199: 6.55 | D199: -2.725705136 | E199: 0.0516951429
A200: 1969-10-19 | B200: 0.0649 | C200: 6.49 | D200: -2.734907655 | E200: -0.009202518931
... 532 more rows
